Cogmind - Beta 15 @@@ ROGUE MODE // 2025.05.10 @ 02:36:38 Player: Savant Result: Destroyed by V388-j with Experimental Jetlance Performance ------------- Evolutions (8) 4000 Regions Visited (26) 5200 Robots Destroyed (471) 2355 Value Destroyed (29772) 29772 Prototype IDs (221) 4420 Alien Tech Used (2) 400 Bonus (16559) 16559 TOTAL SCORE: 62706 Bonus ------- High Alert Combat Kills 2183 Follower Combat Kills 5611 Entered Garrisons 1400 Used RIF Installer 3500 Network Hubs Disabled 400 Built Enhanced Grunts 300 A7 Reached Mainframe 300 Met R17 at Cetus 500 Met R17 at Research 2000 Scanned by Researcher 500 Friendly Fire -135 Cogmind --------- Core Integrity 0/1450 Matter 294/300 Energy 5/100 System Corruption 53% Temperature Cool (0) Movement Flying (45) Location -2/Protoforge Parts ------- > --- POWER (3) -------- (None) > --- PROPULSION (6) --- Flying Surge-Shield Exoskeleton > --- UTILITY (10) ----- Experimental Heat Sink (fused) Advanced Targeting Computer > --- WEAPON (4) ------- Experimental Terror Saw > --- INVENTORY (5) ---- Potential Cannon Perforator Peak State ------------ > --- POWER ------------ Multi-Quantum Reactor > --- PROPULSION ------- Flying Surge-Shield Exoskeleton > --- UTILITY ---------- Armored Scrap Engine Experimental Heat Sink High-capacity Storage Unit Advanced Targeting Computer Experimental Reaction Control System Concept Core Shell Experimental Weapon Shielding Heavy Regenerative Plating > --- WEAPON ----------- Perforator Prc. Thermal Gamma Construct/C > --- INVENTORY -------- Shield Leg Experimental Coolant Injector Huge Storage Unit Advanced Energy Well Advanced Energy Well Experimental Energy Well Quantum Shading Machine Advanced Terrain Scanner Experimental Reaction Control System Crosscalibrator Subatomic Replicator Improved Heavy Laser Potential Cannon Mini Smartbomb Launcher Advanced Remote Datajack [Rating: 205] Favorites ----------- Power Constructs Engine Ion Engine Reactor Constructs Propulsion Constructs Treads Light Treads Leg Experimental Flexi-carbon Leg Wheel Armored Huge Wheel Flight Unit Constructs Utility Armored Scrap Engine Device Armored Scrap Engine Storage Huge Storage Unit Processor Advanced Targeting Computer Hackware Relay Coupler [NC] Protection Centrium Medium Armor Plating Artifact Phase Redirector Weapon Constructs Energy Gun EM Pulse Gun Energy Cannon Constructs Ballistic Gun Assault Rifle Ballistic Cannon Enhanced Gauss Cannon Launcher Precision Grenade Launcher Special Weapon Advanced Remote Datajack Impact Weapon Shock Maul Slashing Weapon Ionic Axe Piercing Weapon Plasma Lance Build | -11 -10 -10 -9 -9 -9 -9 -7 -7 -7 -7 -6 -6 -5 -5 -5 -5 -5 -5 -4 -4 -3 -3 -3 -2 -2 -2 ------- Run | Yrd Mat Min Mat Sto Gar Rec Fac Gar Fac Gar Fac Gar Fac Ext Cet Arc Hub Gar Fac Gar Res Qua Gar Res Tes Frg Slots Evolved 16 | . . . 2 . . . 4 . . . 2 . 2 . . . . . 2 . 2 . . 2 . . Power 2 | . . . . . . . . . . . . . 1 . . . . . . . . . . 1 . . Propulsion 4 | . . . 1 . . . 1 . . . 1 . . . . . . . . . 1 . . . . . Utility 8 | . . . 1 . . . 2 . . . 1 . 1 . . . . . 1 . 1 . . 1 . . Weapon 2 | . . . . . . . 1 . . . . . . . . . . . 1 . . . . . . . Parts Attached 293 | 9 11 9 15 2 4 7 31 9 8 9 14 17 11 11 2 2 5 7 15 13 7 24 11 1 14 25 Power 13 | 1 3 1 . . . 1 5 . . . . 1 . . . . . . . . . . . . . 1 Engine 9 | 1 3 1 . . . 1 3 . . . . . . . . . . . . . . . . . . . Core . | . . . . . . . . . . . . . . . . . . . . . . . . . . . Reactor 4 | . . . . . . . 2 . . . . 1 . . . . . . . . . . . . . 1 Propulsion 27 | 2 2 4 2 . 3 1 6 1 1 . 2 . . . . . . . . . 1 1 . . 1 . Treads 15 | 1 2 4 2 . 3 . 2 . . . 1 . . . . . . . . . . . . . . . Leg 5 | . . . . . . . 1 1 . . 1 . . . . . . . . . . 1 . . 1 . Wheel 7 | 1 . . . . . 1 3 . 1 . . . . . . . . . . . 1 . . . . . Hover . | . . . . . . . . . . . . . . . . . . . . . . . . . . . Flight . | . . . . . . . . . . . . . . . . . . . . . . . . . . . Utility 181 | 3 4 . 5 1 1 3 10 6 6 9 11 13 9 6 2 2 4 6 13 11 5 17 8 . 8 18 Device 44 | 2 2 . . . . 1 1 . 1 1 3 3 1 1 . 1 3 1 3 1 2 7 1 . 2 7 Storage 13 | 1 2 . 1 . . 1 . . . . 1 . 2 . . . . 1 1 . 1 . . . 1 1 Processor 7 | . . . 1 . . . 1 . . . . . 1 . . . . . . 1 . . . . . 3 Hackware 79 | . . . . 1 . . 5 5 3 6 6 7 5 3 . 1 1 2 9 8 . 6 7 . 4 . Protection 37 | . . . 3 . 1 1 3 1 2 2 1 3 . 2 2 . . 2 . 1 2 3 . . 1 7 Artifact 1 | . . . . . . . . . . . . . . . . . . . . . . 1 . . . . Weapon 72 | 3 2 4 8 1 . 2 10 2 1 . 1 3 2 5 . . 1 1 2 2 1 6 3 1 5 6 Energy Gun 6 | 1 1 1 . . . . . . . . . . . . . . . . . . . . . . 1 2 Energy Cannon 17 | . . 1 2 1 . 1 2 1 . . 1 . 1 2 . . 1 . 1 . . 1 . . 1 1 Ballistic Gun 7 | 2 . 1 3 . . . 1 . . . . . . . . . . . . . . . . . . . Ballistic Cannon 9 | . . . . . . . 2 . . . . 1 . . . . . 1 . . . 2 2 . . 1 Launcher 8 | . . 1 . . . . 4 . . . . . . 1 . . . . . . . . 1 . . 1 Special Weapon 16 | . 1 . . . . 1 . 1 1 . . 1 1 2 . . . . 1 1 1 2 . 1 2 . Impact Weapon 5 | . . . 3 . . . 1 . . . . 1 . . . . . . . . . . . . . . Slashing Weapon 3 | . . . . . . . . . . . . . . . . . . . . 1 . 1 . . . 1 Piercing Weapon 1 | . . . . . . . . . . . . . . . . . . . . . . . . . 1 . Special Melee Weapon . | . . . . . . . . . . . . . . . . . . . . . . . . . . . Unidentified Prototypes 30 | . . . . 1 . 1 7 1 . 1 . 1 1 . 1 . . . 1 . 3 5 . . 1 6 Corrupted Parts 5 | . . 4 . . . . . . . . . 1 . . . . . . . . . . . . . . System Corruption 27 | . . 17 . . . . . . . . . 10 . . . . . . . . . . . . . . Parts Lost 50 | . 2 3 4 . 1 1 1 . . 1 . 3 . . . . . 4 . 3 . . . . 1 26 Power 9 | . . . 1 . . 1 . . . . . 1 . . . . . 2 . . . . . . . 4 Propulsion 4 | . . 2 . . 1 . . . . . . . . . . . . . . . . . . . . 1 Utility 28 | . 1 . 2 . . . . . . 1 . 1 . . . . . 1 . 3 . . . . . 19 Weapon 9 | . 1 1 1 . . . 1 . . . . 1 . . . . . 1 . . . . . . 1 2 Highest Loss Streak 8 | . 2 2 3 . 1 1 1 . . 1 . 2 . . . . . 2 . 2 . . . . 1 8 To Critical Strikes 1 | . . . . . . . . . . . . . . . . . . 1 . . . . . . . . Average Backups 21 | 6 10 14 18 19 19 23 23 21 22 23 21 19 24 22 24 23 23 21 23 23 24 24 24 24 22 15 Power . | . 1 1 . . . . . 1 1 1 1 . . . . . . . 1 . . . . . . . Propulsion 2 | 3 3 4 4 4 4 4 4 6 5 5 4 3 3 3 2 1 1 1 . . . . 1 1 . . Utility 11 | . 3 4 4 3 6 10 9 8 10 11 9 9 13 10 13 14 14 12 15 16 20 18 17 17 16 9 Weapon 5 | 1 2 3 9 10 8 7 6 4 4 5 4 3 4 6 6 6 6 5 4 4 2 2 3 4 4 3 Tool/Special . | . . . . . . . . . . . . . . . . . . . . . . . . . . . Unused Backups 104 | 1 5 1 4 2 5 6 13 4 5 7 . 3 2 2 2 2 . 4 5 10 4 5 1 . 5 6 Power 3 | . . . . . . . . . . . . . . . . . . 1 . 2 . . . . . . Propulsion 17 | . 2 . . . 3 1 3 1 . . . 1 1 . . 1 . 1 2 . . . . . . 1 Utility 53 | 1 2 . 1 . 2 2 6 2 5 6 . 1 . 2 1 . . 1 2 7 2 2 1 . 3 4 Weapon 25 | . 1 . 3 2 . 3 4 . . 1 . 1 . . 1 1 . 1 1 1 1 2 . . 2 . Tool/Special 6 | . . 1 . . . . . 1 . . . . 1 . . . . . . . 1 1 . . . 1 Average Slot Usage (%) 70 | . 99 100 99 100 100 85 81 68 68 68 70 63 63 63 64 63 63 62 60 61 63 60 59 56 58 52 Engine 3 | . 14 14 11 11 11 8 4 1 4 . . . . . . . . . . . . . . . . . Reactor 3 | . . . . . . . 2 5 2 7 . 4 10 10 5 5 5 8 5 5 1 1 4 4 4 3 Treads 6 | . 27 28 33 33 33 17 4 . . . . 2 . . . . . 2 . . . . . . 2 2 Leg 3 | . . . . . . 7 3 7 4 . 17 6 4 5 5 5 5 2 4 5 4 . 2 4 2 1 Wheel 2 | . . . . . . 7 10 7 9 15 . . . . . . . . . . 2 . . . . . Device 10 | . 13 14 8 4 . 7 7 11 7 10 10 11 5 10 11 10 10 15 9 11 8 15 14 8 13 14 Storage 6 | . 14 14 11 11 11 11 7 7 7 7 6 6 5 5 5 5 5 5 5 5 4 4 4 4 4 3 Hackware 9 | . . . . 6 11 3 10 3 12 6 10 6 19 14 11 11 11 6 17 13 13 11 13 21 16 5 Protection 4 | . . . 12 11 11 3 4 6 1 4 4 6 1 2 5 5 5 5 3 4 4 3 4 4 4 5 Energy Gun 1 | . 5 23 2 . . . . . . . . 1 . . . . . . . . . . . . . 1 Energy Cannon 3 | . . 4 2 4 6 9 5 1 . 5 1 5 7 7 6 11 8 5 4 . . . 3 . 1 2 Ballistic Gun 2 | . 22 . 7 17 7 4 4 . . . . . . . . . . . . . . . . . . . Ballistic Cannon 2 | . . . . . . . 5 8 7 3 4 2 . . . . . 3 1 6 3 3 1 4 3 2 Special Weapon 2 | . . . . . . 1 . 2 3 3 5 2 2 2 3 . 1 . 4 3 4 3 3 2 3 . Impact Weapon 1 | . . . 8 . 7 5 . 1 2 1 . . . . . . . . 3 2 . . . . . . Peak Build Rating 205 | 8 8 9 16 18 18 39 72 81 78 82 101 106 110 114 121 116 118 133 157 154 154 175 171 173 199 205 Average Rating 99 | 6 7 7 13 17 17 30 59 77 72 79 94 98 106 111 119 115 115 125 143 142 147 156 164 156 183 180 On Entrance 90 | . 8 8 9 16 18 18 37 69 74 78 81 101 98 109 114 116 116 118 130 140 135 154 161 156 173 199 Naked Turns . | . . . . . . . . . . . . . . . . . . . . . . . . . . . Heaviest Build 204 | 14 30 32 58 55 55 95 116 116 111 118 119 128 134 136 135 136 141 153 162 173 153 162 169 175 204 161 Greatest Support 208 | 20 40 40 60 60 60 60 28 28 69 28 149 208 208 208 208 208 208 208 172 172 172 172 172 172 189 168 Greatest Overweight (x) 45 | 1 1 1 . . . 9 5 4 3 4 3 1 . . . 45 . . 1 1 . . . 1 1 1 Average Overweight (x) . | . . . . . . 6 3 3 2 3 . . . . . 1 . . . . . . . . . . Largest Inventory Capacity 25 | 8 15 15 20 20 20 25 25 25 25 25 25 25 25 25 25 25 25 25 25 25 25 25 25 25 25 20 Average Capacity 23 | 7 11 15 19 20 20 24 25 25 25 25 24 22 25 25 25 25 25 25 25 25 25 25 25 25 24 19 Most Carried 25 | 8 15 15 20 20 20 25 25 25 25 25 25 25 25 25 25 25 25 25 25 25 25 25 25 25 25 20 Average Carried 22 | 6 10 14 18 19 19 23 23 24 24 24 23 20 24 22 24 24 24 22 23 23 24 24 24 24 24 18 Final Capacity 25 | 8 15 15 20 20 20 25 25 25 25 25 20 25 25 25 25 25 25 25 25 25 25 25 25 25 20 5 Final Carried 25 | 8 15 15 20 20 20 23 24 25 25 25 20 25 25 25 25 25 23 25 23 25 25 25 25 25 20 4 Scrap Engine Consumption 300 | . . . . . . 15 31 10 14 17 13 13 6 11 9 5 2 18 21 14 14 14 8 10 31 24 Constructs Created 5 | . . . . . . 2 . 1 . . . . 1 . . . . 1 . . . . . . . . Constructs Modified 112 | . . . . . . 2 7 2 8 3 8 4 2 4 2 . . 8 10 6 6 9 3 6 14 8 Class Distribution -------------------- 27% | Bothacker-Construct 17% | Botlord-Construct 16% | Construct 8% | Scavenger-Mutant 8% | Mutant 6% | Hacker-Construct 6% | Commander-Construct Dominant Class ---------------- Mutant | -10/Materials Mutant | -10/Mines Scavenger-Mutant | -9/Materials Scavenger-Mutant | -9/Storage Scavenger-Mutant | -9/Garrison Bothacker-Construct | -9/Recycling Bothacker-Gunner | -7/Factory Construct | -7/Garrison Bothacker-Construct | -7/Factory Bothacker-Construct | -7/Garrison Bothacker-Construct | -6/Factory Bothacker-Construct | -6/Garrison Botlord-Construct | -5/Factory Bothacker-Construct | -5/Extension Commander-Construct | -5/Cetus Commander-Construct | -5/Archives Bothacker-Construct | -5/Hub_04(d) Construct | -5/Garrison Botlord-Construct | -4/Factory Botlord-Construct | -4/Garrison Botlord-Construct | -3/Research Construct | -3/Quarantine Bothacker-Construct | -3/Garrison Botlord-Construct | -2/Research Hacker-Construct | -2/Testing Hacker-Construct | -2/Protoforge Resources | -11 -10 -10 -9 -9 -9 -9 -7 -7 -7 -7 -6 -6 -5 -5 -5 -5 -5 -5 -4 -4 -3 -3 -3 -2 -2 -2 ----------- Run | Yrd Mat Min Mat Sto Gar Rec Fac Gar Fac Gar Fac Gar Fac Ext Cet Arc Hub Gar Fac Gar Res Qua Gar Res Tes Frg Matter Collected 24196 | 344 522 106 672 . 305 308 969 904 638 1061 1099 1461 691 1097 157 241 566 1533 1323 1646 929 2122 940 30 2098 2434 Remotely 157 | 157 . . . . . . . . . . . . . . . . . . . . . . . . . . Salvage Created 20914 | 136 693 245 1025 . 430 249 783 545 474 776 1339 989 310 1029 580 237 425 1744 1334 1130 226 1151 1291 . 1021 2752 Parts 1032 | 11 37 19 61 . 31 12 42 30 13 40 83 40 16 21 16 10 21 75 59 39 7 78 55 . 52 164 Haulers Intercepted 3 | . 1 . 2 . . . . . . . . . . . . . . . . . . . . . . . Recyclers Shooed 5 | 1 . . 2 . . . . . . . 1 . . 1 . . . . . . . . . . . . Parts Field Recycled . | . . . . . . . . . . . . . . . . . . . . . . . . . . . Retrieved Matter . | . . . . . . . . . . . . . . . . . . . . . . . . . . . Parts Self-Destructed . | . . . . . . . . . . . . . . . . . . . . . . . . . . . Prevented . | . . . . . . . . . . . . . . . . . . . . . . . . . . . Kills | -11 -10 -10 -9 -9 -9 -9 -7 -7 -7 -7 -6 -6 -5 -5 -5 -5 -5 -5 -4 -4 -3 -3 -3 -2 -2 -2 ------- Run | Yrd Mat Min Mat Sto Gar Rec Fac Gar Fac Gar Fac Gar Fac Ext Cet Arc Hub Gar Fac Gar Res Qua Gar Res Tes Frg Combat Hostiles Destroyed 398 | . 17 8 27 . 11 4 18 16 6 17 25 18 9 9 6 1 6 47 30 18 4 17 21 . 18 45 Melee 7 | . . . 2 . . 1 . . . 1 . . . . . . . . . . . . . . . 3 Guns 35 | . 17 3 7 . 4 1 . . . . . . . . . . . . . . . . . . . 3 Cannons 233 | . . 2 1 . 4 2 9 13 2 12 24 8 5 6 . 1 6 20 17 15 4 12 15 . 18 37 AOE 84 | . . 3 12 . 2 . 6 2 1 1 1 10 4 . . . . 26 12 . . 1 1 . . 2 Classes Destroyed 23 | 2 6 1 2 . . 2 1 . 1 1 1 1 . . . . . 1 . . 2 . . . . 2 Worker 11 | . 1 . . . . . . . 3 . 2 . . 1 . . . . 1 . . . . . 1 2 Builder 14 | . . . 1 . . 1 1 . . . 5 . 1 . . . . . 2 . . . . . 1 2 Tunneler 6 | 3 . 2 . . . . 1 . . . . . . . . . . . . . . . . . . . Hauler 3 | . 1 . 2 . . . . . . . . . . . . . . . . . . . . . . . Recycler 13 | 1 . 1 2 . . . 2 . 2 . 1 . . 2 . . 1 . . . . . . . 1 . Mechanic 3 | . . . 1 . . . . . 2 . . . . . . . . . . . . . . . . . Operator 8 | . 2 . 2 . . . . . . . . . . . . 4 . . . . . . . . . . Drone 1 | . . . . . . . . . . . . . . . . . . . . . . . . . . 1 Watcher 10 | . 3 . 4 . . . . . . . . . . . 2 . . 1 . . . . . . . . Swarmer 113 | . 6 6 14 . 3 . 6 8 1 1 12 3 5 . . . . 25 12 . 2 . 5 . . 4 Cutter 5 | . . . . . . . . . . . . 4 . . . . . . . 1 . . . . . . Grunt 75 | . 11 . 8 . 2 . 1 4 . 5 8 5 2 1 . . 3 7 1 11 . 1 2 . 3 . Brawler 4 | . . . . . . . . . . . . . . . . . . 4 . . . . . . . . Duelist 4 | . . . . . . . . . . 1 . . . . . . . 2 . . . . . . 1 . Sentry 50 | . . 2 5 . 6 1 1 1 3 4 1 4 . 7 . 1 1 3 . 1 . . 5 . . 4 Demolisher 1 | . . . . . . . . . . . . . . . . . . . . . 1 . . . . . Specialist 11 | . . . . . . . . . 1 . . . . . . . . 5 . . . 3 2 . . . Hunter 23 | . . . . . . . 3 2 . 1 1 . . 1 . . . 2 7 2 . . 2 . 2 . Programmer 66 | . . . . . . 1 7 1 2 5 3 1 2 . . . 2 . 8 2 . 5 4 . 10 13 Q-Series 2 | . . . . . . . . . . . . . . . . . . . . . . . . . . 2 Behemoth 5 | . . . . . . . . . . . 1 1 . . . . . . 1 1 . . 1 . . . Cetus Guard 6 | . . . . . . . . . . . . . . . 6 . . . . . . . . . . . Quarantine Guard 8 | . . . . . . . . . . . . . . . . . . . . . . 8 . . . . Hotshot 14 | . . . . . . . . . . . . . . . . . . . . . . . . . . 14 Decapitator 7 | . . . . . . . . . . . . . . . . . . . . . . . . . . 7 Striker 2 | . . . . . . . . . . . . . . . . . . . . . 1 . . . 1 . Protovariant D 1 | . . . . . . . . . . . . . . . . . . . . . . . . . 1 . Scrapper 2 | . . . . . . 2 . . . . . . . . . . . . . . . . . . . . Guerrilla 2 | . . . . . . . . . . . . . . 1 1 . . . . . . . . . . . Infiltrator 1 | . . . . . . . . . . . . . . . . . . . 1 . . . . . . . Best Kill Streak 11 | 2 4 3 9 . 3 1 5 4 2 4 11 6 4 3 4 2 2 9 6 5 2 3 3 . 4 9 Combat Bots Only 9 | . 4 3 8 . 3 1 4 4 2 4 7 6 4 3 3 1 2 9 6 5 2 3 3 . 4 9 Max Kills in Single Turn 7 | 1 1 2 4 . 2 1 3 2 4 2 3 3 2 1 1 1 1 7 3 1 1 1 1 . 2 3 Gunslinging . | . . . . . . . . . . . . . . . . . . . . . . . . . . . Exploded 7 | . . 2 3 . 2 . 3 2 1 1 1 3 2 . . . . 7 3 . . 1 1 . . 2 Melee 1 | . . . 1 . . 1 . . . 1 . . . . . . . . . . . . . . . 1 Uniques/NPCs Destroyed . | . . . . . . . . . . . . . . . . . . . . . . . . . . . Combat | -11 -10 -10 -9 -9 -9 -9 -7 -7 -7 -7 -6 -6 -5 -5 -5 -5 -5 -5 -4 -4 -3 -3 -3 -2 -2 -2 -------- Run | Yrd Mat Min Mat Sto Gar Rec Fac Gar Fac Gar Fac Gar Fac Ext Cet Arc Hub Gar Fac Gar Res Qua Gar Res Tes Frg Hostile Shots Fired 3120 | . 94 30 120 . 50 33 143 42 146 108 168 230 31 70 13 4 39 252 218 182 6 207 115 1 148 670 Missed 1115 | . 21 7 23 . 15 9 40 12 65 39 51 93 9 19 5 3 11 81 76 81 3 133 67 . 40 212 Deflected 11 | . . . . . . . . . . . . . . . . . . . . . . . . . . 11 Hits 2005 | . 73 23 97 . 35 24 103 30 81 69 117 137 22 51 8 1 28 171 142 101 3 74 48 1 108 458 Melee 72 | . . . . . . . . . . . . 6 . . . . . 1 . 1 . . . . . 64 Projectile 1933 | . 73 23 97 . 35 24 103 30 81 69 117 131 22 51 8 1 28 170 142 100 3 74 48 1 108 394 AOE 20 | . . . . . . . . . 1 . . 1 . . . . . . . 2 2 . . . 12 2 Critical Strikes 117 | . . 1 3 . 1 1 3 . . 3 4 5 1 1 1 . . 3 6 9 . 9 1 . 9 56 Actively Blocked 4 | . . . . . . . . . . . . . . . . . . . . . . . . . . 4 Part Disruptions 2 | . . . . . . . . . . . . . . . . . . 2 . . . . . . . . Damage Taken 38546 | . 764 281 1175 . 471 389 1396 559 1032 985 1858 2063 401 1058 189 47 579 2153 2617 1857 204 1062 522 91 2234 14559 Core 3644 | . 109 55 208 . 15 89 93 66 88 152 149 182 44 93 24 . 19 111 198 317 20 53 36 . 172 1351 Absorbed by Shields 5453 | . . . . . . 58 . . . . . 184 . 36 55 . 116 805 179 521 . 845 488 . 979 1187 Redirected to Shielding 577 | . . . . . . . . . . . . 16 . . . . . . 5 . . . . . 15 541 Ignored by Resistances 20 | . . . . . . . . . . 20 . . . . . . . . . . . . . . . . Regen/Repaired (Parts) 15177 | . 169 . . . . 100 328 266 705 357 1293 569 295 430 532 . 18 1386 1005 1369 175 524 541 . 1119 3996 Core Remaining (%) 59 | 100 . 34 . . . 22 . . . 43 . 61 . . . . . 70 . 55 . . 91 . . . Volleys Fired 1661 | 18 90 20 58 . 30 30 72 68 44 70 110 108 57 93 11 11 34 99 105 89 23 108 75 23 97 118 Largest 3 | 2 2 2 2 . 2 2 3 2 2 2 1 3 2 2 2 2 2 2 2 2 1 1 2 1 2 2 Hottest 281 | 40 100 100 124 . 91 91 129 148 111 145 64 232 200 200 185 200 200 200 198 198 110 110 120 218 232 281 Shots Fired 2255 | 36 165 32 92 . 53 40 117 86 55 90 110 155 62 117 13 16 41 155 131 124 23 108 90 23 137 184 Gun 403 | 36 162 22 57 . 25 10 18 . . . . 19 . . . . . . . . . . . . . 54 Cannon 1380 | . . 8 23 . 26 10 81 54 32 65 81 110 33 81 5 16 25 127 96 86 20 81 65 22 105 128 Launcher 65 | . . 2 12 . 2 . 4 1 . 1 . 6 3 1 8 . . 10 9 1 . . 3 . . 2 Special 407 | . 3 . . . . 20 14 31 23 24 29 20 26 35 . . 16 18 26 37 3 27 22 1 32 . Kinetic 912 | 36 146 . 40 . 25 10 46 28 21 14 65 17 . 10 . . . 38 42 63 19 75 29 22 59 107 Thermal 660 | . 3 8 8 . 26 10 49 11 11 14 16 112 33 65 1 16 25 89 41 . 1 . . . 46 75 Explosive 57 | . . 2 12 . 2 . 4 1 . 1 . 6 3 1 . . . 10 9 1 . . 3 . . 2 Electromagnetic 222 | . 16 22 32 . . . 4 15 . 37 . . . 6 12 . . . 13 23 . 6 36 . . . Robot Hit Streak 21 | 4 9 21 6 . 11 19 5 8 7 18 9 20 8 12 12 11 7 15 14 9 17 13 13 9 11 19 Robot Miss Streak 12 | 2 6 3 4 . 1 2 9 3 3 6 4 7 3 2 1 2 2 6 4 3 2 2 3 . 6 12 Penetration Max 2 | . . . . . . . . . 1 . 1 . . . . . . 1 . 1 1 . . . . 2 Secondary Targets 1 | . 1 . . . . . . . . . . . . . . . . . . . . . . . . . Max Gunslinging Chain 1 | . 1 . . . . . . . . . . . . . . . . . . . . . . . . . Shots Hit Robots 1460 | 22 98 23 71 . 37 35 57 55 48 65 66 109 29 75 4 13 26 86 81 86 9 79 60 1 82 143 Core Hits 640 | 8 40 12 40 . 14 6 20 17 10 29 34 75 12 12 15 3 8 83 31 28 5 17 19 . 24 78 Critical Kills 17 | . . . 1 . . . 2 . 1 . . 1 . . . . . 1 . . . . . . . 11 Critical Parts Destroyed 30 | . . . 7 . . 1 1 1 6 2 . . . . . . . . . 1 . . . . . 11 Critical Strikes 81 | . . . 8 . . 1 6 4 10 3 . 1 . . 1 . . 1 . 8 2 4 1 . 2 29 Meltdown 4 | . . . . . . . 2 . . . . 1 . . . . . 1 . . . . . . . . Destroy 26 | . . . . . . . . . . . . . . . . . . . . . . . . . . 26 Blast 25 | . . . . . . . 3 3 2 1 . . . . . . . . . 6 2 4 1 . 2 1 Corrupt 1 | . . . . . . . . . . . . . . . 1 . . . . . . . . . . . Smash 23 | . . . 8 . . 1 1 1 8 2 . . . . . . . . . 2 . . . . . . Sever 1 | . . . . . . . . . . . . . . . . . . . . . . . . . . 1 Impale 1 | . . . . . . . . . . . . . . . . . . . . . . . . . . 1 Melee Attacks 384 | . . . 45 . 20 8 5 14 26 22 . 9 3 . 8 . 13 9 27 19 17 36 26 16 18 43 Impact 227 | . . . 45 . 20 8 5 14 26 22 . 9 3 . 8 . 13 9 27 18 . . . . . . Slashing 115 | . . . . . . . . . . . . . . . . . . . . 1 17 36 26 16 14 5 Piercing 42 | . . . . . . . . . . . . . . . . . . . . . . . . . 4 38 Sneak Attacks 24 | . . . 3 . . 2 3 1 4 . . . . . . . 1 . 1 3 . 1 . . 2 3 Combat Hostiles 7 | . . . . . . 1 1 1 . . . . . . . . . . . 3 . 1 . . . . Follow-up Attacks 3 | . . . 2 . 1 . . . . . . . . . . . . . . . . . . . . . Damage Inflicted 67801 | 221 1184 501 2498 . 900 440 2002 1507 2301 2240 3192 4486 919 2412 863 827 1115 6505 4914 4269 495 4893 4186 121 4609 10201 Guns 4066 | 221 1126 212 505 . 283 118 198 . . . . 474 . . . . . . . . . . . . . 929 Cannons 49616 | . . 107 399 . 371 153 1099 1248 804 1526 2894 2823 648 2300 110 827 921 4336 3589 3655 495 4729 3765 121 4437 8259 Explosions 9872 | . 58 169 910 . 170 . 513 121 537 440 279 1187 255 18 753 . . 2107 1175 407 . . 421 . . 352 Melee 4056 | . . . 684 . 76 169 192 138 960 274 . . . . . . 163 57 150 207 . 164 . . 172 650 Ramming 191 | . . 13 . . . . . . . . 19 2 16 94 . . 31 5 . . . . . . . 11 Kinetic 29349 | 221 950 . 346 . 283 118 531 767 650 84 2277 455 . 548 . . . 1818 1408 3056 495 4242 2101 121 2037 6841 Thermal 20050 | . 58 107 128 . 371 153 866 246 691 577 896 2906 648 1591 . 827 921 2518 1825 . . . . . 2400 2321 Explosive 7971 | . . 169 863 . 170 . 350 121 . 440 . 1123 255 18 . . . 2107 1175 407 . . 421 . . 352 Electromagnetic 6158 | . 176 212 477 . . . 63 235 . 865 . . . 161 863 . . . 356 599 . 487 1664 . . . Impact 3096 | . . . 684 . 76 169 192 138 960 274 . . . . . . 163 57 150 207 . . . . . 26 Slashing 194 | . . . . . . . . . . . . . . . . . . . . . . 164 . . . 30 Piercing 792 | . . . . . . . . . . . . . . . . . . . . . . . . . 172 620 Highest Corruption 53 | . . 17 . . . . 1 1 4 9 . 10 7 7 7 7 1 4 9 17 . 3 3 2 15 53 Average Corruption 7 | . . 12 . . . . 1 1 2 7 . 5 3 7 7 4 1 3 4 15 . 2 3 2 8 27 Corruption Purged 12 | . . . . . . . . . . . . 5 . . . 7 . . . . . . . . . . Corruption Blocked . | . . . . . . . . . . . . . . . . . . . . . . . . . . . Effects 569 | . . 1 . . . . 4 12 32 55 . 28 14 48 10 5 5 35 37 63 . 14 17 7 68 114 Message Errors 147 | . . 1 . . . . 2 5 8 12 . 7 3 14 4 1 1 10 8 13 . 4 4 2 21 27 Matter Fused 122 | . . . . . . . 1 3 6 11 . 9 3 11 2 1 2 8 6 18 . 2 10 2 14 13 Heat Flow Errors 69 | . . . . . . . . 2 6 9 . . . 4 . . 1 7 7 5 . 2 2 1 9 14 Energy Discharges 74 | . . . . . . . . 1 4 12 . 2 2 4 . 1 . 2 8 10 . 2 . 2 9 15 Parts Rejected 6 | . . . . . . . 1 . . . . . . 1 . . . 1 2 . . . . . . 1 Parts Fused 6 | . . . . . . . . . . 1 . . 1 . . . . . . . . . . . 1 3 Data Loss (minor) 69 | . . . . . . . . . 8 7 . 6 2 7 1 2 1 4 3 5 . 2 . . 9 12 Data Loss (major) 20 | . . . . . . . . 1 . 2 . 1 1 1 1 . . . 1 4 . 2 1 . 2 3 Misfires 9 | . . . . . . . . . . . . 2 . 2 1 . . 1 . 1 . . . . . 2 Alerts 8 | . . . . . . . . . . . . . 1 1 1 . . . 2 1 . . . . 1 1 Misdirections 21 | . . . . . . . . . . . . . . . . . . . . 1 . . . . 1 19 Weapon Failures 18 | . . . . . . . . . . 1 . 1 1 3 . . . 2 . 5 . . . . 1 4 Overload Shots . | . . . . . . . . . . . . . . . . . . . . . . . . . . . Overflow Damage 6246 | . . . 251 . 10 92 188 116 726 188 186 58 30 18 . 334 62 407 680 442 2 341 320 66 653 1076 Projectiles 4421 | . . . 15 . . . 69 58 150 74 186 58 21 12 . 334 49 371 466 379 2 299 292 66 598 922 Explosions 416 | . . . 33 . . . 43 . 145 . . . 9 . . . . 14 144 . . . 28 . . . Melee 1409 | . . . 203 . 10 92 76 58 431 114 . . . 6 . . 13 22 70 63 . 42 . . 55 154 Knockbacks 145 | . . . 1 . . 1 1 2 8 3 11 2 . 1 . . . 7 7 17 2 16 1 1 14 50 Impact 9 | . . . 1 . . 1 . . 3 3 . . . 1 . . . . . . . . . . . . Kinetic 123 | . . . . . . . 1 2 5 . 11 2 . . . . . 7 6 16 1 15 1 1 14 41 Secondary 13 | . . . . . . . . . . . . . . . . . . . 1 1 1 1 . . . 9 Self-Inflicted Damage 993 | . . . 86 . 29 . 42 . 208 . 45 270 . . 31 . . 131 86 25 . . . . . 40 Shots 32 | . . . 4 . 2 . 2 . 3 . 1 8 . . 1 . . 6 3 1 . . . . . 1 Rammed 1 | . . 1 . . . . . . . . . . . . . . . . . . . . . . . . Targets Rammed 18 | . . 3 . . . . . . . . 2 1 2 5 . . 3 1 . . . . . . . 1 Kicked 15 | . . . . . . . . . . . 2 1 2 5 . . 3 1 . . . . . . . 1 Crushed 2 | . . 2 . . . . . . . . . . . . . . . . . . . . . . . . Highest Temperature 583 | . 20 23 168 . 195 123 210 239 247 329 330 423 376 381 70 115 284 410 418 583 332 341 259 435 499 242 Average Temperature 95 | . 8 8 58 . 67 49 59 52 91 101 87 74 85 115 39 54 92 117 121 131 89 98 63 124 106 66 Received Heat Transfer 4772 | . 216 72 336 . 123 156 72 45 144 156 351 328 90 193 . . 87 511 127 257 9 9 95 . 75 1320 Effects 35 | . . . . . . . . . . 1 . . . 1 . . . 1 6 14 . 2 . 3 7 . Shutdowns 4 | . . . . . . . . . . 1 . . . . . . . . . 1 . . . 1 1 . Energy Bleed 8 | . . . . . . . . . . . . . . 1 . . . . 4 3 . . . . . . Interference 17 | . . . . . . . . . . . . . . . . . . . 1 6 . 2 . 2 6 . Matter Decay 3 | . . . . . . . . . . . . . . . . . . 1 1 1 . . . . . . Short Circuit 2 | . . . . . . . . . . . . . . . . . . . . 2 . . . . . . Damage (core) 1 | . . . . . . . . . . . . . . . . . . . . 1 . . . . . . Siege Activations . | . . . . . . . . . . . . . . . . . . . . . . . . . . . Martial Activations . | . . . . . . . . . . . . . . . . . . . . . . . . . . . Shielding Activations 2 | . . . . . . . . . . . . . . . . . . . . . . . . . . 2 Total Turns 43 | . . . . . . . . . . . . . . . . . . . . . . . . . . 43 Longest Duration 22 | . . . . . . . . . . . . . . . . . . . . . . . . . . 22 Robots Disrupted . | . . . . . . . . . . . . . . . . . . . . . . . . . . . Combat Hostiles . | . . . . . . . . . . . . . . . . . . . . . . . . . . . Robots Corrupted 43 | . . . 7 . 1 1 1 1 4 3 . . . 3 6 . 1 1 2 3 . 4 5 . . . Combat Hostiles 34 | . . . 5 . 1 . 1 1 3 3 . . . 1 6 . . . 1 3 . 4 5 . . . Parts Fried 73 | . 1 . 17 . 1 2 3 . 4 2 . . . 7 7 . 2 1 5 4 . 6 11 . . . Impact Corruptions 47 | . . . 10 . 1 4 2 2 11 6 . . . 2 . . 1 1 2 2 1 1 . . . 1 Robots Melted 6 | . . . . . . . 2 . . . . 1 . 2 . . . 1 . . . . . . . . Combat Hostiles 5 | . . . . . . . 2 . . . . . . 2 . . . 1 . . . . . . . . Parts Melted 25 | . . . 2 . 1 1 2 . . 2 . 2 1 11 . . . 2 1 . . . . . . . Heat Transferred 14166 | . 100 222 198 . 666 181 803 222 437 629 250 2761 407 1223 . 481 481 1849 777 . . . . . 740 1739 Parts Sabotaged . | . . . . . . . . . . . . . . . . . . . . . . . . . . . Parts Stolen . | . . . . . . . . . . . . . . . . . . . . . . . . . . . Parts Stripped . | . . . . . . . . . . . . . . . . . . . . . . . . . . . Power Chain Reactions 5 | . 1 . 1 . . . . . . . 2 1 . . . . . . . . . . . . . . Alert | -11 -10 -10 -9 -9 -9 -9 -7 -7 -7 -7 -6 -6 -5 -5 -5 -5 -5 -5 -4 -4 -3 -3 -3 -2 -2 -2 ------- Run | Yrd Mat Min Mat Sto Gar Rec Fac Gar Fac Gar Fac Gar Fac Ext Cet Arc Hub Gar Fac Gar Res Qua Gar Res Tes Frg Maximum Alert Level 4 | . . . 2 . 2 1 1 4 3 3 2 3 2 . 1 1 2 4 3 3 2 1 3 2 . 2 Low Security (%) 47 | 100 100 100 39 100 16 89 83 5 . . 12 4 71 100 72 99 58 8 25 . . 94 7 85 100 45 Level 1 19 | . . . 54 . 32 10 16 9 8 13 23 17 25 . 27 . 23 22 17 11 94 5 32 . . 34 Level 2 19 | . . . 6 . 50 . . 52 91 38 64 35 2 . . . 18 10 18 21 5 . 21 14 . 19 Level 3 11 | . . . . . . . . 24 . 48 . 41 . . . . . 26 38 66 . . 39 . . . Level 4 1 | . . . . . . . . 8 . . . . . . . . . 31 . . . . . . . . Level 5 . | . . . . . . . . . . . . . . . . . . . . . . . . . . . High Security . | . . . . . . . . . . . . . . . . . . . . . . . . . . . Max Security . | . . . . . . . . . . . . . . . . . . . . . . . . . . . Peak Influence 1389 | 5 189 121 426 97 572 287 296 1248 702 1012 578 1014 532 188 242 205 455 1389 812 977 549 250 827 458 165 653 Initial 728 | . . 61 . 97 53 257 152 192 655 279 531 142 532 65 84 75 . 66 728 399 549 218 138 449 36 78 Average 315 | 2 76 24 203 89 336 60 106 651 522 656 389 610 175 53 166 90 215 808 478 717 311 67 552 130 92 226 Influence Increases 19504 | 20 642 206 1089 6 529 246 1113 1116 797 933 749 922 415 622 304 208 1036 1403 1390 748 761 834 901 139 805 1570 Destroy 0b10 Robot/C 8635 | . 340 160 540 . 220 80 420 530 285 450 465 420 240 300 120 60 345 735 645 315 270 300 420 . 315 660 Destroy 0b10 Robot/NC 396 | 20 35 15 60 . . 10 20 . 32 . 36 20 8 20 8 16 36 4 24 . . . . . 12 20 Destroy Leader 1312 | . 78 20 122 . 10 . 120 28 96 40 88 24 40 24 . . 84 40 130 32 48 88 40 . 48 112 Allied During Kill 1649 | . . . . . . 8 14 117 137 48 49 41 32 163 128 76 365 27 117 29 198 10 73 . 17 . Trap Triggered on 0b10 10 | . . . 10 . . . . . . . . . . . . . . . . . . . . . . . Successful Hack 810 | . 49 . 14 6 14 24 20 14 60 11 15 . 3 7 6 . . 26 36 9 163 176 8 16 74 59 Select Force Hacks 210 | . 60 . 60 . . 90 . . . . . . . . . . . . . . . . . . . . Disable Machine 1071 | . . . 90 . . 15 255 27 96 . 36 24 24 24 . 36 60 12 84 . 36 84 24 . 132 12 Anti-Garrison Action 1864 | . . . . . 250 . . 327 . 227 . 265 . . . . . 227 . 265 . . 190 . . 113 Destroy Structure 2296 | . 5 11 103 . 20 4 114 31 79 61 48 92 68 84 42 20 98 260 318 98 34 116 134 99 183 174 Advance Influence 150 | . . . . . . . 150 . . . . . . . . . . . . . . . . . . . Partial Spotted 72 | . . . . . . . . . . . . . . . . . 12 12 . . . . . 24 . 24 Lose Combat Pursuer 1029 | . 75 . 90 . 15 15 . 42 12 96 12 36 . . . . 36 60 36 . 12 60 12 . 24 396 Influence Decreases 18864 | 20 483 365 858 154 40 813 843 143 1646 320 1558 111 1296 603 268 396 941 109 2208 342 1350 1037 287 872 732 1069 Entered New Map 4597 | . . 98 . 134 30 315 3 83 593 120 481 61 482 68 68 113 . 29 661 172 428 170 47 350 30 61 Time Decay 8427 | 20 463 247 518 20 . 388 640 . 648 . 562 . 534 415 160 253 426 . 642 . 562 508 . 222 601 598 Lost Part 490 | . 20 20 40 . 10 10 10 . . 10 . 30 . . . . . 40 . 30 . . . . 10 260 Lost Ally 2143 | . . . . . . 100 40 60 130 190 140 20 130 120 40 30 240 40 230 140 60 102 240 . 91 . Purge Threat 3207 | . . . 300 . . . 150 . 275 . 375 . 150 . . . 275 . 675 . 300 257 . 300 . 150 Squads Dispatched 87 | . 5 . 4 . . . 10 . 5 . 9 . 4 2 . . 9 . 14 . 4 4 . 2 7 8 Investigation 10 | . 3 . 2 . . . . . . . 1 . 1 . . . . . . . 3 . . . . . Extermination 39 | . . . . . . . 4 . 5 . 5 . 2 . . . 2 . 6 . . 3 . 2 6 4 Reinforcement 26 | . 2 . 2 . . . 5 . . . 3 . . 2 . . 6 . 2 . 1 1 . . 1 1 Assault 4 | . . . . . . . . . . . . . . . . . . . 1 . . . . . . 3 Garrison 8 | . . . . . . . 1 . . . . . 1 . . . 1 . 5 . . . . . . . Intercept . | . . . . . . . . . . . . . . . . . . . . . . . . . . . Searches Triggered . | . . . . . . . . . . . . . . . . . . . . . . . . . . . Construction Impeded 3 | . . . . . . . . . . . 2 . . 1 . . . . . . . . . . . . Haulers Reinforced 3 | . . . . . . . . . . . . . . . . . 2 . 1 . . . . . . . Active Scanning Responses . | . . . . . . . . . . . . . . . . . . . . . . . . . . . Cargo Convoy Interrupts 1 | . . . . . . . 1 . . . . . . . . . . . . . . . . . . . Stealth | -11 -10 -10 -9 -9 -9 -9 -7 -7 -7 -7 -6 -6 -5 -5 -5 -5 -5 -5 -4 -4 -3 -3 -3 -2 -2 -2 --------- Run | Yrd Mat Min Mat Sto Gar Rec Fac Gar Fac Gar Fac Gar Fac Ext Cet Arc Hub Gar Fac Gar Res Qua Gar Res Tes Frg Distress Signals 32 | . 1 . 4 . . 1 . . 1 . 3 . 1 3 . . 3 3 2 . 6 . 2 . . 2 Communications Jammed 238 | . . . . . . . . . . . . . . . . . . 110 57 . . 34 . . 37 . Distress Signals 238 | . . . . . . . . . . . . . . . . . . 110 57 . . 34 . . 37 . Times Spotted 835 | . 39 6 46 . 11 10 41 38 27 41 47 35 32 32 10 8 28 60 57 31 21 43 35 5 39 93 Peak Tracking Total 27 | . 4 2 8 . 3 3 4 5 3 8 6 7 5 6 5 1 6 9 5 5 9 5 4 2 6 27 Tactical Retreats 46 | . 3 . 4 . 1 1 . 2 1 5 1 2 . . . . 2 4 2 . 1 5 1 . 1 10 Traps | -11 -10 -10 -9 -9 -9 -9 -7 -7 -7 -7 -6 -6 -5 -5 -5 -5 -5 -5 -4 -4 -3 -3 -3 -2 -2 -2 ------- Run | Yrd Mat Min Mat Sto Gar Rec Fac Gar Fac Gar Fac Gar Fac Ext Cet Arc Hub Gar Fac Gar Res Qua Gar Res Tes Frg Traps Triggered 37 | . 2 . 1 . 1 . 2 6 3 5 . 2 2 1 . . . . . 2 . . 2 1 2 5 Indirectly 2 | . . . 1 . . . 1 . . . . . . . . . . . . . . . . . . . Trap Hack Attempts . | . . . . . . . . . . . . . . . . . . . . . . . . . . . Triggered . | . . . . . . . . . . . . . . . . . . . . . . . . . . . Disarmed 2 | . . . . . . . . . . . . . . . . . . . . . 2 . . . . . Reprogrammed 4 | . . . 4 . . . . . . . . . . . . . . . . . . . . . . . Reused 1 | . . . 1 . . . . . . . . . . . . . . . . . . . . . . . Traps Extracted . | . . . . . . . . . . . . . . . . . . . . . . . . . . . Installed . | . . . . . . . . . . . . . . . . . . . . . . . . . . . Triggered 1 | . . . 1 . . . . . . . . . . . . . . . . . . . . . . . Machines | -11 -10 -10 -9 -9 -9 -9 -7 -7 -7 -7 -6 -6 -5 -5 -5 -5 -5 -5 -4 -4 -3 -3 -3 -2 -2 -2 ---------- Run | Yrd Mat Min Mat Sto Gar Rec Fac Gar Fac Gar Fac Gar Fac Ext Cet Arc Hub Gar Fac Gar Res Qua Gar Res Tes Frg Machines Disabled 119 | . . . 6 . 2 3 17 7 8 4 3 6 2 3 . 3 5 5 7 6 4 7 6 . 11 4 Max in Single Turn 4 | . . . 3 . 1 1 4 1 4 1 1 1 1 1 . 1 1 1 2 1 1 1 1 . 3 1 Garrison Access 8 | . . . . . . . 1 . 1 . 1 . 1 . . . . . . . 2 . . . 1 1 Garrison Relay 26 | . . . . . 2 . . 5 . 4 . 4 . . . . . 3 . 4 . . 4 . . . Network Hub 2 | . . . . . . . . . . . . . . . . . 2 . . . . . . . . . Machines Repaired . | . . . . . . . . . . . . . . . . . . . . . . . . . . . Machines Dismantled 4 | . . . . . . . . 1 . . . . . 1 . . 1 . . . . . 1 . . . Machines Sabotaged . | . . . . . . . . . . . . . . . . . . . . . . . . . . . Overloaded Fab Kills . | . . . . . . . . . . . . . . . . . . . . . . . . . . . Hacking | -11 -10 -10 -9 -9 -9 -9 -7 -7 -7 -7 -6 -6 -5 -5 -5 -5 -5 -5 -4 -4 -3 -3 -3 -2 -2 -2 --------- Run | Yrd Mat Min Mat Sto Gar Rec Fac Gar Fac Gar Fac Gar Fac Ext Cet Arc Hub Gar Fac Gar Res Qua Gar Res Tes Frg Machines Accessed 151 | . 9 . 9 2 2 9 9 3 13 2 10 1 12 4 1 . 3 3 9 2 11 14 1 3 9 10 Terminals 104 | . 6 . 7 1 2 5 5 3 7 2 5 1 6 4 1 . 2 3 5 2 8 11 1 1 8 8 Fabricators 7 | . . . . . . . 2 . . . 1 . 2 . . . . . 1 . . . . 1 . . Repair Stations 6 | . 1 . . . . . . . 1 . 2 . 1 . . . . . . . . 1 . . . . Recycling Units 14 | . 2 . 2 . . 3 . . 2 . . . 1 . . . . . 2 . 1 . . 1 . . Scanalyzers 5 | . . . . . . . . . 1 . . . 1 . . . . . . . . 1 . . . 2 Garrison Access 14 | . . . . 1 . . 2 . 2 . 2 . 1 . . . 1 . 1 . 2 1 . . 1 . Total Hacks 514 | . 31 . 36 3 4 22 19 7 35 3 22 2 25 7 1 . 5 9 42 7 64 62 4 17 43 44 Successful 254 | . 22 . 21 2 1 14 10 1 22 2 10 . 5 5 1 . 2 3 17 1 35 31 1 10 20 18 Failed 259 | . 9 . 15 1 3 7 9 6 13 1 12 2 20 2 . . 3 6 25 6 29 31 3 7 23 26 Catastrophic 35 | . 2 . . . 1 1 . 2 1 . 1 . 1 . . . . 2 2 2 4 5 1 . 5 5 Database Lockouts 1 | . . . . . . 1 . . . . . . . . . . . . . . . . . . . . Manual 264 | . 23 . 16 . 1 10 9 . 25 1 14 . 13 2 1 . 4 1 24 . 28 34 2 13 16 27 Terminals 404 | . 25 . 34 2 4 17 12 7 20 3 12 2 14 7 1 . 4 9 29 7 55 50 4 5 41 40 Fabricators 20 | . . . . . . . 5 . . . 3 . 3 . . . . . 4 . . . . 5 . . Repair Stations 13 | . 4 . . . . . . . 1 . 5 . 2 . . . . . . . . 1 . . . . Recycling Units 38 | . 2 . 2 . . 3 . . 8 . . . 2 . . . . . 8 . 6 . . 7 . . Scanalyzers 20 | . . . . . . . . . 4 . . . 2 . . . . . . . . 10 . . . 4 Garrison Access 17 | . . . . 1 . . 2 . 2 . 2 . 2 . . . 1 . 1 . 3 1 . . 2 . Terminal Hacks 107 | . 5 . 11 1 1 10 3 1 3 2 2 . 1 4 1 . . 3 5 1 18 10 1 3 12 9 Record 2 | . . . . . . 1 . . . . . . . . . . . . . . 1 . . . . . Part Schematic 8 | . 1 . . . . 1 . . . . . . . . . . . . . . 1 3 . . 2 . Robot Schematic 1 | . . . . . . . . . . . . . . . . . . . 1 . . . . . . . Robot Analysis 3 | . . . 1 . . 1 . . . . . . . . . . . . . . . . . . 1 . Prototype ID Bank 18 | . 1 . 3 . . 2 1 . 1 . 1 . . 1 . . . . 1 . 3 1 . . 3 . Open Door 8 | . . . . 1 . . . . . 1 . . 1 2 1 . . 1 . . . . . . 1 . Branch Access Points 3 | . . . . . . . . . . . . . . . . . . . 1 . 1 . . 1 . . Emergency Access Points 5 | . . . . . . . . 1 . 1 . . . . . . . 1 . 1 . . 1 . . . Machine Index 1 | . . . . . . . . . . . . . . . . . . . . . 1 . . . . . Terminal Index 5 | . . . . . . . 1 . 1 . . . . . . . . . . . 1 1 . . . 1 Garrison Index 1 | . . . . . . . . . . . . . . . . . . . . . . . . . . 1 Alert Level 1 | . . . . . . 1 . . . . . . . . . . . . . . . . . . . . Unreport Threat 11 | . . . 2 . . . . . . . . . . . . . . . 2 . 2 2 . 2 . 1 Locate Traps 11 | . 2 . 1 . . . . . . . 1 . . 1 . . . . . . 3 1 . . 2 . Disarm Traps 1 | . . . . . . . . . . . . . . . . . . . . . 1 . . . . . Reprogram Traps 1 | . . . 1 . . . . . . . . . . . . . . . . . . . . . . . Security Status 1 | . . . . . . . . . . . . . . . . . . . . . . . . . . 1 Patrol Status 1 | . . . . . . . . . . . . . . . . . . . . . . . . . . 1 Recall Extermination 3 | . . . . . . . . . . . . . . . . . . . . . . 1 . . 1 1 Hauler Manifests 1 | . . . . . . . . . . . . . . . . . . . . . . 1 . . . . Registered Components 3 | . . . . . . 1 . . . . . . . . . . . . . . 1 . . . 1 . Zone Layout 13 | . 1 . 3 . . 1 1 . 1 . . . . . . . . . . . 3 . . . 1 2 Security Stations 2 | . . . . . 1 . . . . . . . . . . . . 1 . . . . . . . . Proto ID Catalog 1 | . . . . . . . . . . . . . . . . . . . . . . . . . . 1 Release Object 2 | . . . . . . 2 . . . . . . . . . . . . . . . . . . . . Fabricator Hacks 6 | . . . . . . . 2 . . . 2 . . . . . . . . . . . . 2 . . Network Status 3 | . . . . . . . 1 . . . 1 . . . . . . . . . . . . 1 . . Load Schematic 1 | . . . . . . . . . . . 1 . . . . . . . . . . . . . . . Build 2 | . . . . . . . 1 . . . . . . . . . . . . . . . . 1 . . Repair Station Hacks 4 | . 4 . . . . . . . . . . . . . . . . . . . . . . . . . Scan Component 2 | . 2 . . . . . . . . . . . . . . . . . . . . . . . . . Repair 2 | . 2 . . . . . . . . . . . . . . . . . . . . . . . . . Recycling Unit Hacks 3 | . . . . . . . . . . . . . . . . . . . 2 . 1 . . . . . Report Inventory 1 | . . . . . . . . . . . . . . . . . . . 1 . . . . . . . Retrieve Components 2 | . . . . . . . . . . . . . . . . . . . 1 . 1 . . . . . Scanalyzer 9 | . . . . . . . . . 2 . . . . . . . . . . . . 7 . . . . Insert Component 4 | . . . . . . . . . 1 . . . . . . . . . . . . 3 . . . . Analyze 5 | . . . . . . . . . 1 . . . . . . . . . . . . 4 . . . . Garrison Access Hacks 17 | . . . . 1 . . 2 . 2 . 2 . 2 . . . 1 . 1 . 3 1 . . 2 . Unlock Access 7 | . . . . 1 . . 1 . 1 . 1 . . . . . 1 . 1 . . 1 . . . . Seal Access 7 | . . . . . . . 1 . 1 . 1 . 1 . . . . . . . 2 . . . 1 . Coupler Status 3 | . . . . . . . . . . . . . 1 . . . . . . . 1 . . . 1 . Unauthorized Hacks 108 | . 13 . 10 . . 4 3 . 15 . 4 . 2 1 . . 1 . 9 . 13 13 . 5 6 9 Terminals 76 | . 11 . 8 . . 1 1 . 11 . 2 . . 1 . . 1 . 4 . 10 11 . 1 6 8 Track 8 | . 2 . 1 . . . . . 1 . . . . . . . . . . . 1 1 . . 2 . Assimilate 10 | . 1 . . . . . . . 3 . . . . . . . . . . . 2 2 . . . 2 Botnet 14 | . 2 . 1 . . 1 1 . 1 . . . . 1 . . 1 . 1 . 1 1 . 1 1 1 Operators 9 | . 1 . 1 . . . . . 1 . 1 . . . . . . . 1 . 1 1 . . 1 1 Skim 35 | . 5 . 5 . . . . . 5 . 1 . . . . . . . 2 . 5 6 . . 2 4 Fabricators 7 | . . . . . . . 2 . . . . . . . . . . . 2 . . . . 3 . . Prioritize 1 | . . . . . . . . . . . . . . . . . . . . . . . . 1 . . Liberate 3 | . . . . . . . 1 . . . . . . . . . . . 1 . . . . 1 . . Haulers 3 | . . . . . . . 1 . . . . . . . . . . . 1 . . . . 1 . . Repair Stations 5 | . . . . . . . . . 1 . 2 . 1 . . . . . . . . 1 . . . . Mechanics 4 | . . . . . . . . . 1 . 1 . 1 . . . . . . . . 1 . . . . Patch 1 | . . . . . . . . . . . 1 . . . . . . . . . . . . . . . Recycling Units 18 | . 2 . 2 . . 3 . . 3 . . . 1 . . . . . 3 . 3 . . 1 . . Reject 3 | . . . . . . . . . 1 . . . . . . . . . 1 . 1 . . . . . Recyclers 4 | . . . . . . . . . 1 . . . 1 . . . . . 1 . 1 . . . . . Mask 4 | . . . . . . . . . 1 . . . . . . . . . 1 . 1 . . 1 . . Tunnel 7 | . 2 . 2 . . 3 . . . . . . . . . . . . . . . . . . . . Scanalyzers 2 | . . . . . . . . . . . . . . . . . . . . . . 1 . . . 1 Researchers 2 | . . . . . . . . . . . . . . . . . . . . . . 1 . . . 1 Garrison Access . | . . . . . . . . . . . . . . . . . . . . . . . . . . . Data Cores Recovered 3 | . . . . . . . . . . . 1 . 1 . . . 1 . . . . . . . . . Used . | . . . . . . . . . . . . . . . . . . . . . . . . . . . Hacking Detections 113 | . 6 . 7 . 2 3 8 3 11 2 9 1 10 3 1 . 2 2 6 2 9 11 1 2 5 7 Full Trace Events 7 | . . . . . 1 . . 1 . . . 1 1 . . . . 1 . 1 . . 1 . . . Feedback Events 1 | . . . . . . . . . . . . . . . . . . . . 1 . . . . . . Corruption 1 | . . . . . . . . . . . . . . . . . . . . 1 . . . . . . Feedback Blocked . | . . . . . . . . . . . . . . . . . . . . . . . . . . . Robot Schematics Acquired 2 | . . . . . . . . . . . . . . . . . . . 1 . . 1 . . . . Robots Built . | . . . . . . . . . . . . . . . . . . . . . . . . . . . Authchips . | . . . . . . . . . . . . . . . . . . . . . . . . . . . Time 204 | . . . . . . . . . . . . . . . . . . . . . . . . 204 . . Total Robot Build Rating . | . . . . . . . . . . . . . . . . . . . . . . . . . . . Part Schematics Acquired 176 | . 1 . . . . 1 . . 1 . . . . . . . . . . . 1 51 . . 121 . Parts Built 2 | . . . . . . . 2 . . . . . . . . . . . . . . . . . . . Authchips . | . . . . . . . . . . . . . . . . . . . . . . . . . . . Time 106 | . . . . . . . 106 . . . . . . . . . . . . . . . . . . . Total Part Build Rating 12 | . . . . . . . 12 . . . . . . . . . . . . . . . . . . . Parts Repaired 2 | . 2 . . . . . . . . . . . . . . . . . . . . . . . . . Time 52 | . 52 . . . . . . . . . . . . . . . . . . . . . . . . . Parts Recycled . | . . . . . . . . . . . . . . . . . . . . . . . . . . . Recycled Matter . | . . . . . . . . . . . . . . . . . . . . . . . . . . . Retrieved Matter . | . . . . . . . . . . . . . . . . . . . . . . . . . . . Retrieved Components 10 | . . . . . . . . . . . . . . . . . . . 2 . 8 . . . . . Parts Scanalyzed 4 | . . . . . . . . . 1 . . . . . . . . . . . . 3 . . . . Part Schematics Acquired 4 | . . . . . . . . . 1 . . . . . . . . . . . . 3 . . . . Parts Damaged . | . . . . . . . . . . . . . . . . . . . . . . . . . . . Bothacking | -11 -10 -10 -9 -9 -9 -9 -7 -7 -7 -7 -6 -6 -5 -5 -5 -5 -5 -5 -4 -4 -3 -3 -3 -2 -2 -2 ------------ Run | Yrd Mat Min Mat Sto Gar Rec Fac Gar Fac Gar Fac Gar Fac Ext Cet Arc Hub Gar Fac Gar Res Qua Gar Res Tes Frg Used RIF Installer 7 | . . . . . 2 . . 1 . 1 . . . . . . . 1 . 1 . . 1 . . . Code Merge 1 | . . . . . . . . . . . . . . . . . . . . . . . 1 . . . Threat Obfuscator 1 | . . . . . . . . 1 . . . . . . . . . . . . . . . . . . Signal Jammer 1 | . . . . . . . . . . . . . . . . . . 1 . . . . . . . . Watcher Feeds 1 | . . . . . 1 . . . . . . . . . . . . . . . . . . . . . Program Shield 1 | . . . . . . . . . . 1 . . . . . . . . . . . . . . . . Autooverride 1 | . . . . . . . . . . . . . . . . . . . . 1 . . . . . . Robots Hacked 178 | . . . . . . . 9 10 11 14 14 10 18 7 . . 10 2 16 17 3 11 15 1 10 . Non-combat 40 | . . . . . . . 2 . 9 . 5 . 8 1 . . 5 . 5 1 . . . 1 3 . Combat 138 | . . . . . . . 7 10 2 14 9 10 10 6 . . 5 2 11 16 3 11 15 . 7 . Autooverrided 4 | . . . . . . . . . . . . . . . . . . . . 1 . . 3 . . . Robot Hacks Applied 225 | . . . . . . . 11 10 15 14 18 10 19 8 . . 12 2 22 20 3 24 13 1 23 . parse_system 10 | . . . . . . . . 1 . . 3 . . 1 . . 2 . . 2 1 . . . . . no_distress 1 | . . . . . . . . . . . . . . . . . . . . . . . . . 1 . ignore_repairs 11 | . . . . . . . . . 2 . 2 . 4 . . . 1 . 1 . . . . 1 . . drop_inventory 6 | . . . . . . . 1 . 1 . . . 2 . . . . . 1 . . . . . 1 . recall_reinforcements 1 | . . . . . . . . . . . . . . . . . 1 . . . . . . . . . ignore_parts 3 | . . . . . . . . . 3 . . . . . . . . . . . . . . . . . purge_threat 12 | . . . . . . . 1 . 2 . 3 . 1 . . . 2 . 3 . . . . . . . locate_traps 2 | . . . . . . . . . 1 . . . . . . . . . 1 . . . . . . . disarm_traps 1 | . . . . . . . . . . . . . . 1 . . . . . . . . . . . . reprogram_traps 1 | . . . . . . . . . 1 . . . . . . . . . . . . . . . . . block_reporting 3 | . . . . . . . . . . . 1 . 1 . . . 1 . . . . . . . . . map_route 1 | . . . . . . . . . . . . . . . . . . . 1 . . . . . . . report_schematics 16 | . . . . . . . . . . . . . . . . . . . . . . 4 . . 12 . report_analyses 10 | . . . . . . . . . . . . . . . . . . . . . . 9 . . 1 . emergency_deploy 1 | . . . . . . . . . . . . . . . . . . . . . 1 . . . . . find_shortcuts 1 | . . . . . . . . 1 . . . . . . . . . . . . . . . . . . find_garrison 1 | . . . . . . . 1 . . . . . . . . . . . . . . . . . . . scatter_targeting 4 | . . . . . . . . . . . . . . . . . . . 1 2 . 1 . . . . disrupt_area 1 | . . . . . . . . . . . . . . . . . . . . 1 . . . . . . spike_heat 5 | . . . . . . . . . . . . . . 1 . . 1 . 2 . . . 1 . . . amplify_resonance 12 | . . . . . . . 2 . . 1 . . 3 1 . . 1 . 1 2 . 1 . . . . disable_weapons 3 | . . . . . . . . 1 . . . . . . . . . . 1 . 1 . . . . . reboot_system 13 | . . . . . . . 1 1 1 2 . 3 1 . . . . . 1 2 . . 1 . . . overwrite_iff 37 | . . . . . . . . . . 4 2 3 4 1 . . 2 . 3 7 . 5 5 . 1 . streamctrl_low 1 | . . . . . . . . . . . . . . . . . . . 1 . . . . . . . streamctrl_high 1 | . . . . . . . 1 . . . . . . . . . . . . . . . . . . . formatsys_low 15 | . . . . . . . 1 . 3 . 2 . 1 1 . . 1 . 1 1 . 1 . . 3 . formatsys_high 52 | . . . . . . . 3 6 1 7 5 4 2 2 . . . 2 4 3 . 3 6 . 4 . Relay Couplers Released 118 | . . . . . 8 . . 19 2 16 . 16 2 . . . . 13 . 17 4 . 16 . 3 2 Machine Destruction 118 | . . . . . 8 . . 19 2 16 . 16 2 . . . . 13 . 17 4 . 16 . 3 2 Attached 71 | . . . . . . . 5 5 3 6 6 7 5 3 . . 1 1 6 7 . 6 7 . 3 . Merged Code Value 22 | . . . . . . . . . . . . . . . . . . . . . . . 16 . 6 . Fabnet Peak Effective % . | . . . . . . . . . . . . . . . . . . . . . . . . . . . Robots Rewired 46 | . . . . . . 9 . 7 . . . . . 16 . . . 9 . 5 . . . . . . Allies Hacked 5 | . . . . . . . 1 . 1 . . . . . . . . . . . . 2 . . 1 . Hacks Repelled . | . . . . . . . . . . . . . . . . . . . . . . . . . . . Allies | -11 -10 -10 -9 -9 -9 -9 -7 -7 -7 -7 -6 -6 -5 -5 -5 -5 -5 -5 -4 -4 -3 -3 -3 -2 -2 -2 -------- Run | Yrd Mat Min Mat Sto Gar Rec Fac Gar Fac Gar Fac Gar Fac Ext Cet Arc Hub Gar Fac Gar Res Qua Gar Res Tes Frg Total Allies 184 | . 1 . . . . 9 5 15 6 14 9 7 7 25 5 . 3 13 12 19 1 9 16 . 8 . Largest Group 17 | . 1 1 1 . . 9 2 13 12 4 4 4 5 15 17 17 14 7 7 8 9 6 4 . 3 . Highest-Rated Group 967 | . 10 10 10 . . 131 64 443 411 154 124 129 175 600 967 967 748 353 353 397 421 310 199 . 174 . Highest-Rated Ally 159 | . 10 10 10 . . 27 32 43 43 80 41 41 49 159 159 159 96 80 80 62 56 56 58 . 69 . Total Orders 50 | . . . 5 . . 3 2 3 6 6 2 . . 8 . 2 3 . 1 1 4 3 . . 1 . STAY 24 | . . . 3 . . 1 1 2 1 3 1 . . 5 . 1 3 . . . 1 2 . . . . ROAM 1 | . . . . . . 1 . . . . . . . . . . . . . . . . . . . . FOLLOW 17 | . . . 2 . . 1 1 1 2 3 1 . . 3 . 1 . . . . 1 1 . . . . AID 8 | . . . . . . . . . 3 . . . . . . . . . 1 1 2 . . . 1 . Ally Attacks 949 | . . . . . . 25 15 49 63 44 52 43 38 116 19 23 108 17 114 34 68 31 64 . 26 . Total Damage 27662 | . . . . . . 422 555 1460 2456 1024 1273 1387 881 3016 624 540 4076 346 2897 1180 2233 885 1773 . 634 . Kills 176 | . . . . . . 4 4 15 21 13 7 10 8 14 2 3 26 2 17 3 14 3 7 . 3 . Allies Corrupted 10 | . . . . . . . . . 2 . . . 1 . . . 1 . 3 . . 2 . . 1 . Allies Melted 1 | . . . . . . . . . . . . . . . . . . . . 1 . . . . . . Intel | -11 -10 -10 -9 -9 -9 -9 -7 -7 -7 -7 -6 -6 -5 -5 -5 -5 -5 -5 -4 -4 -3 -3 -3 -2 -2 -2 ------- Run | Yrd Mat Min Mat Sto Gar Rec Fac Gar Fac Gar Fac Gar Fac Ext Cet Arc Hub Gar Fac Gar Res Qua Gar Res Tes Frg Active Infowar (turns) 4522 | 11 1578 . 233 . . . 6 . 2 5 3 . . . . . 1 . . . 44 573 . 332 733 1001 Optics 6 | . . . . . . . 6 . . . . . . . . . . . . . . . . . . . IFF 1 | . . . . . . . . . . . . . . . . . 1 . . . . . . . . . Terrain 2683 | . . . . . . . . . . . . . . . . . . . . . 44 573 . 332 733 1001 Structural 662 | . 429 . 233 . . . . . . . . . . . . . . . . . . . . . . . Seismic 1162 | 11 1149 . . . . . . . 2 . . . . . . . . . . . . . . . . . Triangulation 1 | . . . . . . . . . . . 1 . . . . . . . . . . . . . . . Spoofing 5 | . . . . . . . . . . 5 . . . . . . . . . . . . . . . . ECM 2 | . . . . . . . . . . . 2 . . . . . . . . . . . . . . . Robot Analysis Total 3 | . . . 1 . . 1 . . . . . . . . . . . . . . . . . . 1 . Derelict Logs Recovered 2 | . . 2 . . . . . . . . . . . . . . . . . . . . . . . . Drone Launches . | . . . . . . . . . . . . . . . . . . . . . . . . . . . Drone Recoveries . | . . . . . . . . . . . . . . . . . . . . . . . . . . . Exploration | -11 -10 -10 -9 -9 -9 -9 -7 -7 -7 -7 -6 -6 -5 -5 -5 -5 -5 -5 -4 -4 -3 -3 -3 -2 -2 -2 ------------- Run | Yrd Mat Min Mat Sto Gar Rec Fac Gar Fac Gar Fac Gar Fac Ext Cet Arc Hub Gar Fac Gar Res Qua Gar Res Tes Frg Turns Passed 39500 | 127 1944 1033 1718 59 1230 2253 2369 1467 2373 1657 1669 1435 1507 1561 329 625 1105 1716 2310 1568 1666 1805 1138 478 2411 1947 Spaces Moved 23112 | 59 970 564 804 33 564 1004 1319 779 1379 882 1014 735 920 826 178 207 572 906 1358 828 1048 1818 1251 640 1285 1169 Core 9 | 1 . . . . . . . . . . . . . . . 8 . . . . . . . . . . Treads 5452 | 1 920 564 804 33 564 334 . . . . 15 421 24 . . . . 514 260 . . . . . 529 469 Legs 9868 | . . . . . . . . . . . 942 314 896 826 178 199 572 392 1098 828 1048 42 848 640 756 289 Wheels 5193 | 57 50 . . . . 670 1319 779 1379 882 57 . . . . . . . . . . . . . . . Hover . | . . . . . . . . . . . . . . . . . . . . . . . . . . . Flight 2590 | . . . . . . . . . . . . . . . . . . . . . . 1776 403 . . 411 Fastest Speed 45 | 50 95 160 160 160 160 160 140 145 145 145 126 131 142 142 142 142 142 142 124 124 79 57 57 57 57 45 Average Speed 133 | 90 156 160 160 160 160 209 150 150 145 147 134 143 142 142 142 225 142 142 139 140 131 62 57 58 141 117 Slowest Speed 2300 | 160 160 240 160 160 160 320 160 160 164 160 219 263 142 142 142 2300 142 142 245 227 150 91 57 118 238 266 Overloaded Moves . | . . . . . . . . . . . . . . . . . . . . . . . . . . . Propulsion Burnouts . | . . . . . . . . . . . . . . . . . . . . . . . . . . . Robots Hopped 26 | . . . . . . . . . . . . . . . . . . . . . . 5 . . . 21 Potential Cave-ins 16 | . . . . . . . . . . . . . . . . . . . 2 . . . . . . 14 Cave-ins Triggered 1 | . . . . . . . . . . . . . . . . . . . . . . . . . . 1 Exploration Rate (%) 61 | 4 97 96 69 7 49 98 51 70 49 91 35 74 27 87 66 82 49 79 52 77 29 96 84 26 98 31 Regions Visited 26 Branch Regions 10 Pre-discovered Areas 13 | . 3 . 4 . . 3 . . 2 . . . . . . . . . . . . 1 . . . . Known Exits Taken 12 | . . 1 . 1 . . 1 . 1 . 1 . 1 1 . . 1 . 1 . 1 1 . 1 . . Unknown Exits Taken 7 | 1 1 . 1 . . 1 . . . . . . . . 1 1 . . . . . . . . 1 . Scrap Searched 1 | . . 1 . . . . . . . . . . . . . . . . . . . . . . . . Spaces Dug 567 | . 3 . 38 . 10 4 30 18 13 14 13 23 22 26 8 . 15 38 87 10 11 43 21 34 23 63 Terrain Destroyed 1321 | . 5 14 128 . 10 4 119 30 48 31 51 67 38 43 9 1 22 129 174 53 15 58 71 37 65 99 Melee 221 | . . . 15 . 6 4 2 9 6 11 . 6 1 . 8 . 11 6 23 10 8 29 21 16 11 18 Projectile 467 | . 3 . . . . . 40 12 18 3 46 17 20 35 1 1 11 58 43 22 7 29 15 21 40 25 AOE 625 | . 2 14 113 . 4 . 77 9 24 17 5 44 17 8 . . . 65 108 21 . . 35 . 14 48 Terrain Rammed . | . . . . . . . . . . . . . . . . . . . . . . . . . . . Walls Destroyed . | . . . . . . . . . . . . . . . . . . . . . . . . . . . Machines Disabled . | . . . . . . . . . . . . . . . . . . . . . . . . . . . Actions | -11 -10 -10 -9 -9 -9 -9 -7 -7 -7 -7 -6 -6 -5 -5 -5 -5 -5 -5 -4 -4 -3 -3 -3 -2 -2 -2 --------- Run | Yrd Mat Min Mat Sto Gar Rec Fac Gar Fac Gar Fac Gar Fac Ext Cet Arc Hub Gar Fac Gar Res Qua Gar Res Tes Frg Total 29115 | 96 1235 658 1056 40 809 1111 1604 968 1656 1116 1233 958 1062 1109 229 351 800 1173 1616 1094 1293 2366 1564 697 1759 1462 Wait 2371 | . 130 48 71 . 168 23 58 22 148 44 52 35 38 132 7 122 139 107 45 59 150 295 142 7 263 66 Move 23044 | 58 969 563 803 32 563 1003 1318 778 1378 881 1014 734 919 825 177 206 571 905 1358 827 1047 1808 1250 639 1284 1134 Hop 18 | . . . . . . . . . . . . . . . . . . . . . . 5 . . . 13 Pick Up 342 | 8 16 6 22 3 7 13 36 16 11 14 11 19 12 8 7 2 2 12 12 28 12 24 13 2 17 9 Fast Attach 88 | 8 1 1 1 . . 1 4 . 2 3 2 3 2 2 1 4 6 4 5 1 7 9 1 . 9 11 Attach 171 | . 3 3 6 . 1 5 13 6 3 5 13 13 2 4 . . . 4 14 13 4 16 8 2 9 24 Detach 100 | . . 1 . . . 4 6 4 2 3 3 9 . 1 . 1 . 3 10 7 5 12 4 1 6 18 Swap 476 | 2 16 9 40 2 14 10 44 25 22 24 12 16 16 23 8 1 21 19 29 32 11 21 15 6 24 14 Drop 315 | 2 10 4 15 3 10 14 37 11 10 11 13 8 10 6 10 4 8 10 9 18 17 31 9 1 25 9 Fire 1661 | 18 90 20 58 . 30 30 72 68 44 70 110 108 57 93 11 11 34 99 105 89 23 108 75 23 97 118 Melee 375 | . . . 40 . 16 8 5 14 26 22 . 9 3 . 8 . 13 9 27 19 17 36 26 16 18 43 Ram . | . . . . . . . . . . . . . . . . . . . . . . . . . . . Kick 15 | . . . . . . . . . . . 2 1 2 5 . . 3 1 . . . . . . . 1 Crush 3 | . . 3 . . . . . . . . . . . . . . . . . . . . . . . . Escape Stasis 87 | . . . . . . . 8 16 8 37 . 3 . . . . . . . . . . 9 . 4 2 Rewire 22 | . . . . . . . 3 . 2 2 1 . 1 2 . . . . 2 1 . 1 4 . 3 . Trap . | . . . . . . . . . . . . . . . . . . . . . . . . . . . Miscellaneous 27 | . . . . . . . . 8 . . . . . 8 . . 3 . . . . . 8 . . . Route ------- -11/Scrapyard -10/Materials (discovered 5 exits: *Mat x3 / [*Min] / Sub) -10/Mines (discovered 2 exits: *Mat x2) -9/Materials (discovered 6 exits: *Mat x3 / *Min x2 / *Sto) -9/Storage (discovered 2 exits: Rec / Gar) -9/Garrison (discovered 2 exits: *Rec x2) -9/Recycling -7/Factory (discovered 3 exits: *Fac / [*Low] / Gar) -7/Garrison (discovered 3 exits: *Fac x2 / *Fac) -7/Factory (discovered 5 exits: *Fac x4 / Gar) -7/Garrison (discovered 3 exits: *Fac x3) -6/Factory (discovered 2 exits: [*Low] / Gar) -6/Garrison (discovered 3 exits: *Fac x3) -5/Factory (discovered 2 exits: *Upp / *Ext) -5/Extension (discovered 2 exits: *Fac / *Cet) -5/Cetus (discovered 2 exits: *Fac / [*Arc]) -5/Archives (discovered 3 exits: *Fac / *Hub x2) -5/Hub_04(d) (discovered 3 exits: *Fac x2 / Gar) -5/Garrison (discovered 2 exits: *Fac x2) -4/Factory (discovered 4 exits: *Res / *Upp x2 / Gar) -4/Garrison (discovered 2 exits: *Res x2) -3/Research (discovered 6 exits: *Res x3 / Arm / *Qua x2) -3/Quarantine (discovered 2 exits: *Res / Gar) -3/Garrison (discovered 3 exits: *Res x3) -2/Research (discovered 3 exits: Acc / *Tes x2) -2/Testing (discovered 3 exits: *Acc / [*Sec] / *Frg) -2/Protoforge (discovered 1 exit: *Acc) History --------- Turn | Location | Event 12 | -11/Scrapyard | Discovered new exit (range 15) 128 | -11/Scrapyard | Entered Materials 306 | -10/Materials | Build established: Mutant 544 | -10/Materials | Discovered new exit (range 16) 645 | -10/Materials | Discovered new exit (range 15) 896 | -10/Materials | Repaired Lgt. Treads 923 | -10/Materials | Repaired Assault Rifle 996 | -10/Materials | Discovered new exit (range 5) 1101 | -10/Materials | Discovered new exit (range 8) 1452 | -10/Materials | Identified exit to Materials 1452 | -10/Materials | Identified exit to Subcaves 1487 | -10/Materials | Learned Storage emergency access door positions 1511 | -10/Materials | Learned location of Subcaves (-10) 1527 | -10/Materials | Learned Recycling recycling unit intel 1534 | -10/Materials | Loaded intel: 2 recycling unit locations 1541 | -10/Materials | Learned Storage stockpile data 1556 | -10/Materials | Loaded intel: 8 terminal locations 2072 | -10/Materials | Entered Mines 2072 | -10/Mines | Accompanied by 1 ally 2312 | -10/Mines | Core integrity fell below 50% 2411 | -10/Mines | Found DCF Scrap (10 items) 2468 | -10/Mines | Learned Materials stockpile data 2969 | -10/Mines | Learned Materials terminal intel 3098 | -10/Mines | System corruption reached 10% 3105 | -10/Mines | Entered Materials 3105 | -9/Materials | Accompanied by 1 ally 3105 | -9/Materials | Evolved 2 slots: Propulsion x1, Utility x1 3107 | -9/Materials | Loaded intel: 12 terminal locations 3259 | -9/Materials | Discovered new exit (range 8) 3399 | -9/Materials | Build established: Scavenger-Mutant 3421 | -9/Materials | Discovered new exit (range 9) 3499 | -9/Materials | Destroyed 7 combat bots 3628 | -9/Materials | Discovered new exit (range 12) 3716 | -9/Materials | Discovered new exit (range 15) 3758 | -9/Materials | Discovered new exit (range 13) 3823 | -9/Materials | Learned location of Recycling (-9) 3856 | -9/Materials | Identified exit to Mines 3904 | -9/Materials | Identified exit to Materials 3910 | -9/Materials | Loaded intel: 2 recycling unit locations 3960 | -9/Materials | Learned 2 Materials zone layouts 4119 | -9/Materials | Lost 3 parts (1p2u) 4137 | -9/Materials | Core integrity fell below 50% 4160 | -9/Materials | Destroyed 8 combat bots 4823 | -9/Materials | Entered Storage 4824 | -9/Storage | Identified exit to Recycling 4844 | -9/Storage | Identified exit to Garrison 4882 | -9/Storage | Entered Garrison 4978 | -9/Garrison | Triggered checkpoint 5084 | -9/Garrison | Triggered checkpoint 5144 | -9/Garrison | Garrison Relay disabled 5296 | -9/Garrison | Discovered exit to Recycling (range 15) 5477 | -9/Garrison | Installed Relay Interface Framework 5732 | -9/Garrison | Expanded RIF knowledge: Watcher Feeds 5860 | -9/Garrison | Triggered checkpoint 5901 | -9/Garrison | Learned Recycling security intel 5938 | -9/Garrison | Triggered checkpoint 5982 | -9/Garrison | Garrison Relay disabled 6019 | -9/Garrison | Discovered exit to Recycling (range 12) 6112 | -9/Garrison | Entered Recycling 6113 | -9/Recycling | Met a Zionite searching for Scraptown 6113 | -9/Recycling | Loaded intel: 5 recycling unit locations 6615 | -9/Recycling | Scanned before Scraplab entrance 6746 | -9/Recycling | Entered Scraplab 6766 | -9/Recycling | Discovered new exit (range 3) 6783 | -9/Recycling | Angered Scraplab inhabitants 6785 | -9/Recycling | Found Prototype Device 6822 | -9/Recycling | Identified Scrap Engine 6839 | -9/Recycling | Lost 5 allies 7097 | -9/Recycling | Build established: Bothacker-Mutant 7453 | -9/Recycling | Build established: Bothacker-Construct 7720 | -9/Recycling | Discovered new exit (range 10) 8365 | -9/Recycling | Entered Factory 8365 | -7/Factory | Accompanied by 1 ally 8365 | -7/Factory | Evolved 4 slots: Propulsion x1, Utility x2, Weapon x1 8584 | -7/Factory | Fabricated Enh. Gauss Cannon (x2) 8781 | -7/Factory | Build established: Bothacker-Tank 8913 | -7/Factory | Discovered new exit (range 16) 9220 | -7/Factory | Discovered new exit (range 15) 9662 | -7/Factory | Found Prototype Launcher 9810 | -7/Factory | Cargo convoy interrupted 9965 | -7/Factory | Build established: Bothacker-Gunner 10001 | -7/Factory | Found PL-3XN's Ring of Power 10101 | -7/Factory | Identified Rocket Array 10325 | -7/Factory | Build established: Tank 10720 | -7/Factory | Identified exit to Garrison 10726 | -7/Factory | Garrison activated, responded to threat 10734 | -7/Factory | Entered Garrison 10734 | -7/Garrison | Accompanied by 1 ally 10748 | -7/Garrison | Triggered checkpoint 10790 | -7/Garrison | Build established: Construct 10866 | -7/Garrison | Triggered checkpoint 10950 | -7/Garrison | Garrison Relay disabled 11399 | -7/Garrison | Triggered checkpoint 11461 | -7/Garrison | Expanded RIF knowledge: Threat Obfuscation 11527 | -7/Garrison | Rescued a captive Derelict 11529 | -7/Garrison | Rescued a captive Derelict 11554 | -7/Garrison | Garrison Relay disabled 11595 | -7/Garrison | Discovered new exit (range 12) 11710 | -7/Garrison | Triggered checkpoint 11768 | -7/Garrison | Triggered checkpoint 11847 | -7/Garrison | Garrison Relay disabled 11899 | -7/Garrison | Discovered new exit (range 9) 11906 | -7/Garrison | Triggered checkpoint 11972 | -7/Garrison | Triggered checkpoint 11993 | -7/Garrison | Garrison Relay disabled 12056 | -7/Garrison | Triggered checkpoint 12072 | -7/Garrison | Triggered checkpoint 12119 | -7/Garrison | Garrison Relay disabled 12174 | -7/Garrison | Discovered new exit (range 6) 12201 | -7/Garrison | Entered Factory 12201 | -7/Factory | Accompanied by 12 allies 12371 | -7/Factory | Build established: Commander-Construct 13031 | -7/Factory | Lost 6 allies 13283 | -7/Factory | Build established: Bothacker-Construct 13421 | -7/Factory | Discovered new exit (range 8) 13524 | -7/Factory | Lost 4 allies 13642 | -7/Factory | Discovered new exit (range 16) 14327 | -7/Factory | Learned location of 1 exit from Extension 14402 | -7/Factory | Identified exit to Factory 14467 | -7/Factory | Learned Hub_04(d) emergency access door positions 14521 | -7/Factory | Learned location of Lower Caves (-6) 14566 | -7/Factory | Learned location of Zion (-7) 14570 | -7/Factory | Identified exit to Garrison 14574 | -7/Factory | Entered Garrison 14574 | -7/Garrison | Accompanied by 1 ally 14612 | -7/Garrison | Triggered checkpoint 14684 | -7/Garrison | Garrison Relay disabled 15219 | -7/Garrison | Triggered checkpoint 15234 | -7/Garrison | Triggered checkpoint 15278 | -7/Garrison | Core integrity fell below 50% 15355 | -7/Garrison | Found embedded Infiltrators 15426 | -7/Garrison | Triggered checkpoint 15450 | -7/Garrison | Garrison Relay disabled 15534 | -7/Garrison | Discovered exit to Factory (range 12) 15665 | -7/Garrison | Discovered exit to Factory (range 10) 15722 | -7/Garrison | Triggered checkpoint 15798 | -7/Garrison | Garrison Relay disabled 15845 | -7/Garrison | Rescued a captive Derelict 15973 | -7/Garrison | Triggered checkpoint 16018 | -7/Garrison | Triggered checkpoint 16066 | -7/Garrison | Discovered exit to Factory (range 12) 16077 | -7/Garrison | Expanded RIF knowledge: Program Shield 16111 | -7/Garrison | Triggered checkpoint 16139 | -7/Garrison | Garrison Relay disabled 16231 | -7/Garrison | Entered Factory 16231 | -6/Factory | Accompanied by 2 allies 16231 | -6/Factory | Evolved 2 slots: Propulsion x1, Utility x1 16467 | -6/Factory | Spotted B-75 Beast 16496 | -6/Factory | Destroyed B-75 Beast 16680 | -6/Factory | P-60 Hacker assimilated allied Technician 5a 16749 | -6/Factory | Destroyed 7 combat bots 17040 | -6/Factory | Discovered new exit (range 8) 17804 | -6/Factory | Build established: Construct 17900 | -6/Factory | Identified exit to Garrison 17900 | -6/Factory | Entered Garrison 17938 | -6/Garrison | Triggered checkpoint 17967 | -6/Garrison | Garrison Relay disabled 18153 | -6/Garrison | Triggered checkpoint 18159 | -6/Garrison | Spotted B-75 Beast 18164 | -6/Garrison | Triggered checkpoint 18202 | -6/Garrison | System corruption reached 10% 18242 | -6/Garrison | Destroyed B-75 Beast 18688 | -6/Garrison | Triggered checkpoint 18698 | -6/Garrison | Build established: Bothacker-Construct 18734 | -6/Garrison | Garrison Relay disabled 18810 | -6/Garrison | Discovered new exit (range 8) 18891 | -6/Garrison | Triggered checkpoint 18961 | -6/Garrison | Discovered new exit (range 8) 19011 | -6/Garrison | Triggered checkpoint 19031 | -6/Garrison | Garrison Relay disabled 19251 | -6/Garrison | Triggered checkpoint 19273 | -6/Garrison | Garrison Relay disabled 19308 | -6/Garrison | Discovered new exit (range 14) 19335 | -6/Garrison | Entered Factory 19335 | -5/Factory | Accompanied by 4 allies 19335 | -5/Factory | Evolved 2 slots: Power x1, Utility x1 19381 | -5/Factory | Garrison activated, responded to threat 19458 | -5/Factory | Lost 4 allies 19577 | -5/Factory | Build established: Botlord-Construct 20149 | -5/Factory | P-70 Sage assimilated allied Sentinel 6a 20163 | -5/Factory | Discovered new exit (range 15) 20500 | -5/Factory | Identified exit to Upper Caves 20836 | -5/Factory | Discovered new exit (range 6) 20840 | -5/Factory | Identified exit to Extension 20842 | -5/Factory | Entered Extension 20843 | -5/Extension | Identified exit to Cetus 20945 | -5/Extension | Rescued a captive Derelict 21289 | -5/Extension | Build established: Bothacker-Construct 21455 | -5/Extension | Rescued A7 21530 | -5/Extension | Rescued a captive Derelict 21855 | -5/Extension | Spotted B-75 Beast 21874 | -5/Extension | Allies destroyed B-75 Beast 21883 | -5/Extension | Spotted B-75 Beast 21891 | -5/Extension | Allies destroyed B-75 Beast 21915 | -5/Extension | Lost 5 allies 22037 | -5/Extension | Rescued a captive Derelict 22039 | -5/Extension | Rescued a captive Derelict 22317 | -5/Extension | Discovered new exit (range 10) 22403 | -5/Extension | Entered Cetus 22403 | -5/Cetus | Accompanied by 15 allies (A7) 22408 | -5/Cetus | Acquired a Cetus Manufacturing Module code from A7 22423 | -5/Cetus | Spotted Cetus Guard 22423 | -5/Cetus | Spotted Cetus Guard 22430 | -5/Cetus | Spotted Cetus Guard 22430 | -5/Cetus | Spotted Cetus Guard 22430 | -5/Cetus | Allies destroyed Cetus Guard 22432 | -5/Cetus | Destroyed Cetus Guard 22436 | -5/Cetus | Destroyed Cetus Guard 22438 | -5/Cetus | Destroyed Cetus Guard 22502 | -5/Cetus | Build established: Commander-Construct 22525 | -5/Cetus | Started Cetus Manufacturing Module 22535 | -5/Cetus | Escorted A7 to Cetus Mainframe 22550 | -5/Cetus | Manufactured an Enhanced Grunt 22556 | -5/Cetus | Discovered new exit (range 15) 22575 | -5/Cetus | Manufactured an Enhanced Grunt 22579 | -5/Cetus | Discovered new exit (range 27) 22591 | -5/Cetus | Destroyed Cetus Guard 22591 | -5/Cetus | Spotted Cetus Guard 22591 | -5/Cetus | Spotted Cetus Guard 22592 | -5/Cetus | Destroyed Cetus Guard 22600 | -5/Cetus | Manufactured an Enhanced Grunt 22600 | -5/Cetus | Destroyed Cetus Guard 22617 | -5/Cetus | Met Revision 17 22625 | -5/Cetus | Manufactured an Enhanced Grunt 22650 | -5/Cetus | Manufactured an Enhanced Grunt 22732 | -5/Cetus | Entered Archives 22732 | -5/Archives | Accompanied by 17 allies (A7) 22737 | -5/Archives | Received a hacking code to weaken MAIN.C 22797 | -5/Archives | Discovered new exit (range 15) 22872 | -5/Archives | Discovered new exit (range 15) 23063 | -5/Archives | Discovered new exit (range 15) 23357 | -5/Archives | Entered Hub_04(d) 23357 | -5/Hub_04(d) | Accompanied by 14 allies 23456 | -5/Hub_04(d) | Garrison activated, responded to threat 23686 | -5/Hub_04(d) | Discovered new exit (range 4) 23813 | -5/Hub_04(d) | Build established: Bothacker-Construct 23936 | -5/Hub_04(d) | Discovered new exit (range 5) 24030 | -5/Hub_04(d) | Lost 3 allies 24302 | -5/Hub_04(d) | Network Hub disabled 24325 | -5/Hub_04(d) | Spotted Lightning 24338 | -5/Hub_04(d) | Spotted Lightning 24410 | -5/Hub_04(d) | Network Hub disabled 24438 | -5/Hub_04(d) | Identified exit to Garrison 24462 | -5/Hub_04(d) | Entered Garrison 24549 | -5/Garrison | Triggered checkpoint 24611 | -5/Garrison | Learned Factory security intel 24882 | -5/Garrison | Build established: Construct 25035 | -5/Garrison | Destroyed 9 combat bots 25354 | -5/Garrison | Expanded RIF knowledge: Signal Jamming 25460 | -5/Garrison | Garrison Relay disabled 25501 | -5/Garrison | Discovered new exit (range 12) 25643 | -5/Garrison | Triggered checkpoint 25672 | -5/Garrison | Destroyed 9 combat bots 25728 | -5/Garrison | Garrison Relay disabled 25756 | -5/Garrison | Build established: Bothacker-Construct 26087 | -5/Garrison | Found embedded Infiltrators 26128 | -5/Garrison | Discovered new exit (range 12) 26159 | -5/Garrison | Garrison Relay disabled 26178 | -5/Garrison | Entered Factory 26178 | -4/Factory | Accompanied by 7 allies 26178 | -4/Factory | Evolved 2 slots: Utility x1, Weapon x1 26453 | -4/Factory | Build established: Botlord-Construct 26559 | -4/Factory | Lost 3 allies 26928 | -4/Factory | First assault squad dispatched 27493 | -4/Factory | Build established: Bothacker-Construct 27568 | -4/Factory | Discovered new exit (range 10) 27658 | -4/Factory | Identified exit to Upper Caves 28155 | -4/Factory | Spotted B-86 Titan 28168 | -4/Factory | Garrison activated, responded to threat 28183 | -4/Factory | Destroyed B-86 Titan 28328 | -4/Factory | Discovered new exit (range 4) 28380 | -4/Factory | Garrison activated, responded to threat 28488 | -4/Factory | Identified exit to Garrison 28488 | -4/Factory | Entered Garrison 28506 | -4/Garrison | Expanded RIF knowledge: Autooverride 28530 | -4/Garrison | Build established: Construct 28534 | -4/Garrison | Garrison Relay disabled 28574 | -4/Garrison | Found embedded Infiltrators 28635 | -4/Garrison | Triggered checkpoint 28645 | -4/Garrison | System corruption reached 10% 28700 | -4/Garrison | Lost 4 allies 28709 | -4/Garrison | Spotted B-86 Titan 28728 | -4/Garrison | Destroyed B-86 Titan 28882 | -4/Garrison | Triggered checkpoint 29111 | -4/Garrison | Discovered new exit (range 11) 29159 | -4/Garrison | Garrison Relay disabled 29318 | -4/Garrison | Triggered checkpoint 29362 | -4/Garrison | Discovered new exit (range 14) 29372 | -4/Garrison | Triggered checkpoint 29436 | -4/Garrison | Garrison Relay disabled 29483 | -4/Garrison | Build established: Botlord-Construct 29729 | -4/Garrison | Garrison Relay disabled 30056 | -4/Garrison | Entered Research 30056 | -3/Research | Accompanied by 8 allies 30056 | -3/Research | Evolved 2 slots: Propulsion x1, Utility x1 30069 | -3/Research | Identified exit to Armory 30069 | -3/Research | Identified exit to Quarantine 30256 | -3/Research | Revision forces began assault on 0b10 30317 | -3/Research | Met up with Revision 17++ 30443 | -3/Research | Discovered new exit (range 26) 30654 | -3/Research | Loaded intel: 67 trap records 30688 | -3/Research | Spotted B-86 Titan 30691 | -3/Research | Learned Quarantine trap positions 30719 | -3/Research | Learned Testing security intel 30737 | -3/Research | Learned 4 Access zone layouts 30744 | -3/Research | Learned Testing emergency access door positions 30745 | -3/Research | Learned location of 1 exit from Quarantine 30753 | -3/Research | Identified exit to Research 30756 | -3/Research | Research terminal network offline 30843 | -3/Research | Spotted B-86 Titan 31275 | -3/Research | Spotted Striker 31282 | -3/Research | Destroyed Striker 31310 | -3/Research | Lost 4 allies 31408 | -3/Research | Spotted Striker 31420 | -3/Research | Spotted Striker 31441 | -3/Research | Allies destroyed Striker 31468 | -3/Research | Lost 4 allies 31568 | -3/Research | Discovered exit to Research (range 16) 31722 | -3/Research | Entered Quarantine 31722 | -3/Quarantine | Accompanied by 5 allies 31724 | -3/Quarantine | Loaded intel: 22 trap records 31760 | -3/Quarantine | Found Phase Armor 31775 | -3/Quarantine | Found Core Reset Matrix 31789 | -3/Quarantine | Found Subatomic Replicator 31971 | -3/Quarantine | Found Prototype Device 31971 | -3/Quarantine | Identified Imp. Particle Accelerator 32062 | -3/Quarantine | Lost 4 allies 32351 | -3/Quarantine | Learned Quarantine trap positions 32411 | -3/Quarantine | Learned Testing garrison access intel 32419 | -3/Quarantine | Found Alien Energy Cannon 32419 | -3/Quarantine | Identified Core Cannon 32432 | -3/Quarantine | Learned Research scanalyzer intel 32433 | -3/Quarantine | Learned location of 1 exit from Armory 32439 | -3/Quarantine | Learned location of 1 exit from Armory 32457 | -3/Quarantine | Learned location of Section 7 (-2) 32485 | -3/Quarantine | Learned Testing interactive machine intel 32524 | -3/Quarantine | Learned Research repair station intel 32705 | -3/Quarantine | Found Prototype Launcher 32726 | -3/Quarantine | Identified Mni. Smartbomb Launcher 32868 | -3/Quarantine | Cryocooling Duct disabled 32870 | -3/Quarantine | Cryocooling Duct disabled 32883 | -3/Quarantine | Ambient heat levels rising (+20) 32883 | -3/Quarantine | Non-combat units ordered to evacuate 32885 | -3/Quarantine | Ambient heat levels rising (+20) 32885 | -3/Quarantine | Combat units ordered to evacuate 32941 | -3/Quarantine | Build established: Construct 32985 | -3/Quarantine | Quarantine Guard activated 33064 | -3/Quarantine | Spotted Quarantine Guard 33070 | -3/Quarantine | Spotted Quarantine Guard 33070 | -3/Quarantine | Spotted Quarantine Guard 33172 | -3/Quarantine | Destroyed Quarantine Guard 33208 | -3/Quarantine | Destroyed Quarantine Guard 33249 | -3/Quarantine | Spotted Quarantine Guard 33283 | -3/Quarantine | Destroyed Quarantine Guard 33285 | -3/Quarantine | Destroyed Quarantine Guard 33353 | -3/Quarantine | Spotted Quarantine Guard 33383 | -3/Quarantine | Destroyed Quarantine Guard 33433 | -3/Quarantine | Spotted Quarantine Guard 33436 | -3/Quarantine | Destroyed Quarantine Guard 33448 | -3/Quarantine | Spotted Quarantine Guard 33451 | -3/Quarantine | Destroyed Quarantine Guard 33457 | -3/Quarantine | Spotted Quarantine Guard 33470 | -3/Quarantine | Destroyed Quarantine Guard 33487 | -3/Quarantine | Found Alien Artifact 33488 | -3/Quarantine | Identified Phase Redirector 33525 | -3/Quarantine | Identified exit to Garrison 33527 | -3/Quarantine | Entered Garrison 33541 | -3/Garrison | Triggered checkpoint 33573 | -3/Garrison | Garrison Relay disabled 33703 | -3/Garrison | Triggered checkpoint 33735 | -3/Garrison | Triggered checkpoint 33750 | -3/Garrison | Spotted B-86 Titan 33785 | -3/Garrison | Destroyed B-86 Titan 33821 | -3/Garrison | Triggered checkpoint 33879 | -3/Garrison | Lost 4 allies 33908 | -3/Garrison | Discovered exit to Research (range 5) 34021 | -3/Garrison | Triggered checkpoint 34044 | -3/Garrison | Expanded RIF knowledge: Code Merge 34047 | -3/Garrison | Triggered checkpoint 34050 | -3/Garrison | Garrison Relay disabled 34193 | -3/Garrison | Triggered checkpoint 34206 | -3/Garrison | Garrison Relay disabled 34220 | -3/Garrison | Garrison Relay disabled 34316 | -3/Garrison | Rescued a captive Derelict 34318 | -3/Garrison | Rescued a captive Derelict 34340 | -3/Garrison | Lost 4 allies 34498 | -3/Garrison | Build established: Bothacker-Construct 34593 | -3/Garrison | Spotted B-90 Cyclops 34616 | -3/Garrison | Lost 3 allies 34665 | -3/Garrison | Entered Research 34665 | -2/Research | Evolved 2 slots: Power x1, Utility x1 34666 | -2/Research | Identified exit to Access 34667 | -2/Research | Loaded intel: 4 repair station locations 34668 | -2/Research | Loaded intel: 6 scanalyzer locations 34736 | -2/Research | Identified exit to Testing 34909 | -2/Research | Build established: Botlord-Construct 35143 | -2/Research | Entered Testing 35145 | -2/Testing | Loaded intel: 16 interactive machine locations 35146 | -2/Testing | Loaded intel: 1 garrison access location 35168 | -2/Testing | Found Med. Regenerative Plating 35173 | -2/Testing | Found Hvy. Regenerative Plating 35218 | -2/Testing | Spotted PD-G34OKAWVE3 35243 | -2/Testing | Found Potential Cannon 35687 | -2/Testing | P-80 Master assimilated allied Artificer 9a 35688 | -2/Testing | Spotted PD-O27JF21NOM 35746 | -2/Testing | Destroyed PD-O27JF21NOM 35764 | -2/Testing | Lost 4 allies 35981 | -2/Testing | Spotted Striker 35986 | -2/Testing | Destroyed Striker 36025 | -2/Testing | Spotted Striker 36027 | -2/Testing | Build established: Hacker-Construct 36063 | -2/Testing | System corruption reached 10% 36743 | -2/Testing | Found Prototype Ballistic Cannon 36863 | -2/Testing | Discovered exit to Access (range 8) 37364 | -2/Testing | Identified Perforator 37439 | -2/Testing | Spotted Fortress 37495 | -2/Testing | Scanned by Researcher 37546 | -2/Testing | Discovered new exit (range 5) 37546 | -2/Testing | Discovered new exit (range 6) 37554 | -2/Testing | Entered Protoforge 37584 | -2/Protoforge | Spotted Hotshot 37586 | -2/Protoforge | Spotted Hotshot 37587 | -2/Protoforge | Destroyed Hotshot 37589 | -2/Protoforge | Spotted Hotshot 37589 | -2/Protoforge | Superfortress began startup sequence 37596 | -2/Protoforge | Spotted Hotshot 37599 | -2/Protoforge | Destroyed Hotshot 37627 | -2/Protoforge | Destroyed Hotshot 37685 | -2/Protoforge | Destroyed Hotshot 38233 | -2/Protoforge | Discovered exit to Access (range 7) 38384 | -2/Protoforge | Spotted Hotshot 38384 | -2/Protoforge | Spotted Hotshot 38384 | -2/Protoforge | Spotted Hotshot 38384 | -2/Protoforge | Spotted Hotshot 38384 | -2/Protoforge | Spotted Hotshot 38415 | -2/Protoforge | Destroyed Hotshot 38427 | -2/Protoforge | Destroyed Hotshot 38443 | -2/Protoforge | Destroyed Hotshot 38448 | -2/Protoforge | Destroyed Hotshot 38451 | -2/Protoforge | Destroyed Hotshot 38544 | -2/Protoforge | Spotted Hotshot 38544 | -2/Protoforge | Spotted Hotshot 38547 | -2/Protoforge | Spotted Hotshot 38547 | -2/Protoforge | Spotted Hotshot 38660 | -2/Protoforge | Spotted Hotshot 38669 | -2/Protoforge | Destroyed Hotshot 38678 | -2/Protoforge | Destroyed Hotshot 38709 | -2/Protoforge | Destroyed Hotshot 38709 | -2/Protoforge | Destroyed Hotshot 38709 | -2/Protoforge | Destroyed Hotshot 38742 | -2/Protoforge | System corruption reached 30% 38771 | -2/Protoforge | Found Prototype Energy Gun 38771 | -2/Protoforge | Identified Enh. Gamma Rifle 38789 | -2/Protoforge | Destroyed 9 combat bots 38919 | -2/Protoforge | Found Prototype Protection 38919 | -2/Protoforge | Identified Cep. Core Shell 38974 | -2/Protoforge | Additional patrols dispatched to research labs 39007 | -2/Protoforge | Crushed by falling debris 39008 | -2/Protoforge | Core integrity fell below 50% 39029 | -2/Protoforge | Spotted Decapitator 39029 | -2/Protoforge | Spotted Decapitator 39030 | -2/Protoforge | Spotted Decapitator 39030 | -2/Protoforge | Spotted Decapitator 39033 | -2/Protoforge | Destroyed Decapitator 39036 | -2/Protoforge | Destroyed Decapitator 39047 | -2/Protoforge | Destroyed Decapitator 39054 | -2/Protoforge | First assault squad dispatched 39135 | -2/Protoforge | Found Prototype Device 39186 | -2/Protoforge | Spotted Immortal 39186 | -2/Protoforge | Spotted Immortal 39191 | -2/Protoforge | Build established: Construct 39192 | -2/Protoforge | Spotted Decapitator 39192 | -2/Protoforge | Spotted Decapitator 39192 | -2/Protoforge | Spotted Decapitator 39192 | -2/Protoforge | Spotted Decapitator 39198 | -2/Protoforge | Destroyed Decapitator 39201 | -2/Protoforge | Destroyed Decapitator 39204 | -2/Protoforge | Destroyed Decapitator 39208 | -2/Protoforge | Destroyed Decapitator 39211 | -2/Protoforge | Found Prototype Launcher 39211 | -2/Protoforge | Identified Cep. Concussive Dispersal Blaster 39216 | -2/Protoforge | Found Exp. Terror Saw 39267 | -2/Protoforge | Spotted V899-o 39293 | -2/Protoforge | Found Cep. Core Shell 39297 | -2/Protoforge | Found Cep. Phase Shift Module 39300 | -2/Protoforge | Found Cep. RG22 Armor 39308 | -2/Protoforge | Lost 4 parts (1p3u) 39310 | -2/Protoforge | Spotted V535-h 39310 | -2/Protoforge | Spotted V399-e 39310 | -2/Protoforge | Spotted V388-j 39310 | -2/Protoforge | Spotted V089-t 39459 | -2/Protoforge | Lost 8 parts (1p6u1w) 39471 | -2/Protoforge | Found Med. Regenerative Plating 39485 | -2/Protoforge | Core integrity fell below 20% 39501 | -2/Protoforge | Destroyed by V388-j with Experimental Jetlance Last Messages --------------- 39486_ P-80 Master resets P-80 Master, system corruption cleaned. 39487_ Knocked back. 39489_ P-80 Master resets P-80 Master, system corruption cleaned. 39491_ Penetrated by Railslug. 39491_ Knocked back. 39491_ Railslug penetrates Reinforced Barrier. 39491_ M-36 Artificer repairs P-80 Master Gamma Rifle. 39492_ U-05 Engineer destroyed. 39492_ Penetrated by Slug. 39492_ Slug penetrates Reinforced Barrier. 39493_ System corrupted: Med. Regenerative Plating rejected. 39494_ Flying Surge-Shield Exoskeleton destroyed. 39494_ Flying Surge-Shield Exoskeleton core remains intact and functional. 39495_ K-01 Serf destroyed. 39497_ Critical hit (Impale). 39499_ Triggered Stasis Trap. 39499_ A bubble of rippling energy engulfs the area. 39499_ Field strength at 34. 39500_ Stasis field depleted. 39501_ Critical hit (Impale). Map ----- +----------------------------------------------------+ | ?????????????????????????????????????????????????? | | ?????????????????????????????????????????????????? | | ?????????????????????????????????????????????????? | | ?????????????????????????????????????????????????? | | ?????????????????????????????????????????????????? | | ?????????????????????????????????????????????????? | | ?????????????????????????????????????????????????? | | ?????????????????????????????????????????????????? | | ?????????????????????????????????????????????????? | | ?????????????????????????????????????????????????? | | ??????????????????????? ???????????????????????? | | ??????????????????????# ???????????????????????? | | ??????????????????????# ???????????????????????? | | ??????????????????????# ???????????????????????? | | ???????????c??????????# ???????????????????????? | | ??????????????????????# ???????????????????????? | | ??????????????????????# ???????????????????????? | | ??????????????????????# #??????????????????????? | | ??????????????????????# #??????????????????????? | | ??????????????????????# #??????????????????????? | | ??????????????????????# #??????????????????????? | | ??????????????????????# #??????????????????????? | | ??????????????????????# #??????????????????????? | | ??????????????????????# #??????????????????????? | | ????c?????????????????# #??????????????????????? | | ??????????????????????# @#??????????????????????? | | ??????????????????????# V#??????????????????##### | | ??????????????????????# #??????????????????""""" | | ??????????????????????# V#???????????????????==== | | ???????? #????????????# #???????????????????==== | | ???????? #????????????# p #???????????????????#""" | | ???????? #????????????# m #?????????????????#"" | | ??????? #????????????# p#?????????????????# | | ??????? #????????????# !################### | | ??????? #????????????# | | ####### #????????????# | | %##???????????# #########//######## | | #???????????# #?????#" ???# | | #???????????# #?????#" c " | | ### #####???????????# #?????#" " " " | | ??#!|!#???????????????#!gg#?????#"""""""# " | | ??#!!!#???????????????# #?????######### ####"" | | ??#! ]#???????????????# ! #?????????????#####????? | | ??#! !#???????????????# #??????????????????????? | | ??#!!!#???????????????# #??????????????????????? | | ??# "#???????????????# #??????????????????????? | | ??# "%################# #??????????????????????? | | ??# " #??????????????????????? | | ??# #??????????????????????? | | ??# #??????????????????????? | +----------------------------------------------------+ Best States ------------- Heat Dissipation 101 Coolant Potential 120 Energy Generation 75 Energy Capacity 800 Matter Stores 300 Matter Capacity 600 Sight Range 16 Terrain Scan Range 20 Terrain Scan Density 10 ECM Strength 1 Additional Mass Support 20 Armor Coverage 600 Resistance: EM 20 Core Shielding 90 Utility Shielding 66 Weapon Shielding 90 Weapon Cycling 20 Phase Shifting 15 Evasion (%) 78 Targeting Accuracy 8 Core Analysis 6 Recoil Reduction 6 Offensive Hacking 14 Defensive Hacking 14 Relay Coupler Types 4 Relay Coupler Value 115 Authchip Count 2 Item Schematics ----------------- Huge Storage Unit | -10/Materials | Hacked Hpw. Tractor Beam | -9/Recycling | Hacked Mak. Microdissipator Network | -7/Factory | Scanalyzed Exp. Utility Shielding | -3/Research | Hacked Imp. Diametric Drive | -3/Quarantine | Reported ECM Suite | -3/Quarantine | Reported Imp. Reaction Control System | -3/Quarantine | Reported Imp. Linear Gravjet | -3/Quarantine | Reported Molecular Scythe | -3/Quarantine | Reported Exp. Cesium-ion Thruster | -3/Quarantine | Reported Centrium Heavy Armor Plating | -3/Quarantine | Reported Antigrav Array | -3/Quarantine | Reported Exp. Optical Array | -3/Quarantine | Reported Cld. Field Propulsion Drive | -3/Quarantine | Reported Lgt. Antimatter Cannon | -3/Quarantine | Reported Neutrino Core | -3/Quarantine | Reported Exp. Power Amplifier | -3/Quarantine | Reported Exp. ECM Suite | -3/Quarantine | Reported Neutron Missile Launcher | -3/Quarantine | Reported Cld. Antigrav System | -3/Quarantine | Reported Exp. Flexi-carbon Leg | -3/Quarantine | Reported Mni. Fusion Reactor | -3/Quarantine | Reported Kinetic Spear | -3/Quarantine | Reported Exp. Terrain Scan Processor | -3/Quarantine | Reported Exp. Signal Interpreter | -3/Quarantine | Reported Lgt. Particle Reactor | -3/Quarantine | Reported Electron Diverter | -3/Quarantine | Reported Imp. Recalibrator | -3/Quarantine | Reported Imp. Gyrokinetic Inverter | -3/Quarantine | Reported Enh. Multireflex Exoskeleton | -3/Quarantine | Reported Com. Matter Pod | -3/Quarantine | Reported Proton Burst Cannon | -3/Quarantine | Reported Force Field | -3/Quarantine | Reported Exp. Energy Well | -3/Quarantine | Reported Centrium Medium Armor Plating | -3/Quarantine | Scanalyzed Hcp. Storage Unit | -3/Quarantine | Scanalyzed Imp. Utility Shielding | -3/Quarantine | Scanalyzed Exp. Targeting Computer | -3/Quarantine | Hacked Cld. Impulse Thruster | -3/Quarantine | Reported Tactical Quantum Warhead | -3/Quarantine | Reported Imp. Energy Well | -3/Quarantine | Reported Cld. Nuclear Pulse Thruster | -3/Quarantine | Reported Stealth Drone Bay | -3/Quarantine | Reported Remote Datajack | -3/Quarantine | Reported Hvy. Neutron Cannon | -3/Quarantine | Reported Imp. Matter Compressor | -3/Quarantine | Reported Neutron Cannon | -3/Quarantine | Reported Plasma Sword | -3/Quarantine | Reported Adv. Kinecellerator | -3/Quarantine | Archive Cld. Antimatter Reactor | -3/Quarantine | Archive Adv. Gravity Neutralizer | -3/Quarantine | Archive Exp. Thermal Defense Suite | -3/Quarantine | Archive Hvy. Antimatter Reactor | -3/Quarantine | Archive Exp. System Shield | -3/Quarantine | Archive Biometal Heavy Treads | -3/Quarantine | Hacked Hvy. Regenerative Plating | -2/Testing | Hacked Lgt. Regenerative Plating | -2/Testing | Hacked Hellfire Missile Launcher | -2/Testing | Reported Adv. Myomer Leg | -2/Testing | Reported Hvy. Dispersion Rifle | -2/Testing | Reported Cld. Plasma Rifle | -2/Testing | Reported Adv. Quantum Shading Machine | -2/Testing | Reported Hds. Centrium Heavy Treads | -2/Testing | Reported Hvy. Tesla Rifle | -2/Testing | Reported Vibroblade | -2/Testing | Reported Com. Mass Driver | -2/Testing | Reported Graviton Reactor | -2/Testing | Reported Exp. Gyrokinetic Inverter | -2/Testing | Reported Exp. Focal Shield | -2/Testing | Reported Point Singularity Launcher | -2/Testing | Reported Shock Maul | -2/Testing | Reported Exp. Transmission Jammer | -2/Testing | Reported Adv. EM Disruption Field | -2/Testing | Reported Imp. Quantum Reactor | -2/Testing | Reported Exp. Thermal Shield | -2/Testing | Reported Hvy. Proton Cannon | -2/Testing | Reported Enh. Armored Heavy Treads | -2/Testing | Reported Exp. Core Shielding | -2/Testing | Reported Spectral Analyzer | -2/Testing | Reported Exp. Shield Generator | -2/Testing | Reported Spear | -2/Testing | Reported Coolant Network | -2/Testing | Reported Adv. Recalibrator | -2/Testing | Reported Exp. Core Analyzer | -2/Testing | Reported Adv. EM Shield | -2/Testing | Reported Adv. Plasma Rifle | -2/Testing | Reported Kinecellerator | -2/Testing | Reported Imp. Force Booster | -2/Testing | Reported Prc. Energy Filter | -2/Testing | Reported Adv. Remote Shield | -2/Testing | Reported Cld. Q-thruster | -2/Testing | Reported Thunder Hammer | -2/Testing | Reported Exp. Weapon Cycler | -2/Testing | Reported Centrium Greatsword | -2/Testing | Reported Imp. Actuator Array | -2/Testing | Reported Centrium Light Armor Plating | -2/Testing | Reported Exp. Cooling System | -2/Testing | Reported Imp. Matter Neutralizer | -2/Testing | Reported Adv. Variable Charge Gun | -2/Testing | Reported Adv. Matter Compressor | -2/Testing | Reported Cld. Phase Gun | -2/Testing | Reported Lrn. Sensor Array | -2/Testing | Reported Thermal Barrier | -2/Testing | Reported Core Analyzer | -2/Testing | Reported Hds. Centrium Leg | -2/Testing | Reported Hds. Centrium Wheel | -2/Testing | Reported Exp. Reaction Control System | -2/Testing | Reported Enh. Coil Gun | -2/Testing | Reported Exp. Coolant Injector | -2/Testing | Reported Exp. Biometal Medium Treads | -2/Testing | Reported Exp. Q-thruster | -2/Testing | Reported Diametric Drive | -2/Testing | Reported Imp. Q-thruster | -2/Testing | Reported Gravity Flail | -2/Testing | Reported Adv. Energy Well | -2/Testing | Reported Adv. Component Analysis Suite | -2/Testing | Reported Ragnarok Missile Launcher | -2/Testing | Reported Graviton Cannon | -2/Testing | Reported Gravity Neutralizer | -2/Testing | Reported Quantum Shading Machine | -2/Testing | Reported Hvy. Proton Missile Launcher | -2/Testing | Reported Exp. Biometal Heavy Treads | -2/Testing | Reported Enh. Biometal Leg | -2/Testing | Reported Hvy. Disruptor Cannon | -2/Testing | Reported Exp. Target Analyzer | -2/Testing | Reported Exp. Actuator Array | -2/Testing | Reported Prc. Phase Gun | -2/Testing | Reported Biometal Leg | -2/Testing | Reported Hvy. Gatling Laser | -2/Testing | Reported Exp. Heat Sink | -2/Testing | Reported Cmb. Antigrav System | -2/Testing | Reported Cld. Linear Gravjet | -2/Testing | Reported Hvy. Hardcell Cannon | -2/Testing | Reported HERF Cannon | -2/Testing | Reported Com. Linear Accelerator | -2/Testing | Reported Exp. Cloaking Device | -2/Testing | Reported Centrium Heavy Treads | -2/Testing | Reported Enh. Armored Medium Treads | -2/Testing | Reported Hvy. Wave Gun | -2/Testing | Reported Imp. Hardlight Generator | -2/Testing | Reported Exp. Field Recycling Unit | -2/Testing | Reported Imp. Thermal Defense Suite | -2/Testing | Reported Prc. Matter Filter | -2/Testing | Reported Enh. Gamma Bomb Array | -2/Testing | Reported Exp. Propulsion Shielding | -2/Testing | Reported Plasma Lance | -2/Testing | Reported Hacking Suite | -2/Testing | Reported Exp. Melee Analysis Suite | -2/Testing | Reported Exp. Terrain Scanner | -2/Testing | Reported Exp. Myomer Leg | -2/Testing | Reported Helical Railgun | -2/Testing | Reported Cld. Phase Cannon | -2/Testing | Reported Adv. Thermal Defense Suite | -2/Testing | Reported System Purifier | -2/Testing | Reported Nanosword | -2/Testing | Reported Com. Tesla Bomb Launcher | -2/Testing | Reported Adv. Force Field | -2/Testing | Reported Exp. Biometal Leg | -2/Testing | Reported Ionic Axe | -2/Testing | Reported Exp. Matter Compressor | -2/Testing | Reported Exp. Hacking Suite | -2/Testing | Reported Imp. System Shield | -2/Testing | Reported Imp. Focal Shield | -2/Testing | Reported Antigrav System | -2/Testing | Reported Adv. KE Penetrator | -2/Testing | Reported Adv. Dynamic Insulation System | -2/Testing | Reported Adv. Datajack | -2/Testing | Reported Adv. Micro-nuke Launcher | -2/Testing | Reported Particle Accelerator | -2/Testing | Reported Exp. Weapon Shielding | -2/Testing | Reported Multireflex Exoskeleton | -2/Testing | Reported Vortex Chain Reactor | -2/Testing | Reported Exp. Armor Integrity Analyzer | -2/Testing | Reported Adv. Cryofiber Web | -2/Testing | Reported Com. Particle Reactor | -2/Testing | Reported Exp. Sensor Array | -2/Testing | Reported Robot Schematics ------------------ H-77 Assassin | -4/Factory | Hacked S-43 Plague | -3/Quarantine | Archive Fabricated ------------ Enh. Gauss Cannon | x2 | -7/Factory | Preloaded Repaired ---------- Lgt. Treads | 25% | -10/Materials Assault Rifle | 36% | -10/Materials Alien Tech Used ----------------- Core Cannon Phase Redirector Achievements -------------- None Challenges ------------ None Game ------ Seed StructuralActiveWartreads Manual? 0 Play Time 09:38:01 Cumulative 811.9 hours Start 2025.05.08 @ 23:56:06 End 2025.05.10 @ 02:36:38 Sessions 7 Manual Loads 0 Difficulty Rogue Special Mode None Game No. 158 Rogue 158 Adventurer 0 Explorer 0 Win Type - Total 47 Types 22/4/6/1/2/1/6/2/2/1 Lore% 83 Gallery% 87 Achievement% 91 Wizard Run 0 Options --------- Layout 0 ASCII 0 Keyboard 0 Movement Numpad Keybinds 0 Fullscreen 1 Font 18/SmallcapsGlow Map View 76x50 Zoom Use 0% Tactical HUD 1 Map Filters NONE Filters NONE Steam 1 RUN: 2e40c1cb-9186-432d-8947-a24fbdbe501e